Cogmind - Beta 9.3 @@@ ROGUE MODE // 2019.12.17 @ 22:48:17 // Winter2019/RPGLIKE Player: Invest in Accuracy Result: Heading to fleet! Performance ------------- Evolutions (9) 4500 Regions Visited (37) 7400 Robots Destroyed (1290) 6450 Value Destroyed (78207) 78207 Prototype IDs (74) 1480 Alien Tech Used (14) 2800 Bonus (101559) 101559 TOTAL SCORE: 202396 Bonus ------- Triggered High Security 1500 Triggered Max Security 1000 High Alert Combat Kills 49391 Follower Combat Kills 3364 Network Hubs Disabled 400 Met Imprinter 300 Met Zhirov 300 Met Warlord at Base 500 MAIN.C Attacked Warlord 500 Warlord Defense Kill 974 Met R17 at Cetus 500 Used Core Reset Matrix 3000 Scanned by Researcher 500 Met Sigix 2000 Activated Exoskeleton 3000 Destroyed MAIN.C Guards 500 Met MAIN.C 5000 Destroyed MAIN.C Shell 5000 Destroyed MAIN.C 10000 Met Architect 300 Destroyed A8 300 Destroyed A6 400 Destroyed A5 500 Destroyed A4 700 Destroyed A3 800 Destroyed A2 1000 Destroyed Architect 15000 Win 3000 Friendly Fire -8170 Cogmind --------- Core Integrity 1635/1800 Matter 500/500 Energy 1906/1925 System Corruption 0% Temperature Cool (9) Movement Treading (143) Location To Fleet Rendezvous Parts ------- > --- POWER (3) -------- Antimatter Reactor Improved Quantum Reactor Improved Quantum Reactor > --- PROPULSION (5) --- Medium Treads Experimental Biometal Heavy Treads Experimental Biometal Heavy Treads > --- UTILITY (11) ----- Desublimator Experimental Energy Well Spectral Analyzer Experimental Targeting Computer Experimental Target Analyzer Experimental Core Analyzer Advanced Armor Integrity Analyzer Precision Matter Filter Experimental Weapon Cycler Experimental Phase Shifter Experimental Force Field > --- WEAPON (7) ------- Sigix Quantum Sheargun Enhanced Autogun Enhanced Autogun Enhanced Autogun Multirail Multirail Multirail > --- INVENTORY (5) ---- High-capacity Matter Pod (200) Long-range Tractor Beam Multirail Multirail Peak State ------------ > --- POWER ------------ Antimatter Reactor Improved Quantum Reactor Improved Quantum Reactor > --- PROPULSION ------- Medium Treads Experimental Biometal Heavy Treads Experimental Biometal Heavy Treads > --- UTILITY ---------- Desublimator Experimental Energy Well Spectral Analyzer Experimental Targeting Computer Experimental Target Analyzer Experimental Core Analyzer Advanced Armor Integrity Analyzer Precision Matter Filter Experimental Weapon Cycler Experimental Phase Shifter Experimental Force Field > --- WEAPON ----------- Enhanced Autogun Enhanced Autogun Enhanced Autogun Multirail Multirail Multirail Multirail > --- INVENTORY -------- High-capacity Matter Pod Long-range Tractor Beam High-powered Transdimensional Reconstructor Sigix Quantum Sheargun Multirail [Rating: 239] Favorites ----------- Power Improved Quantum Reactor Engine Cooled Ion Engine Reactor Improved Quantum Reactor Propulsion Experimental Biometal Heavy Treads Treads Experimental Biometal Heavy Treads Wheel Wheel Flight Unit Xenon Bombardment Thruster Utility Long-range Tractor Beam Device Long-range Tractor Beam Storage Experimental Energy Well Processor Experimental Targeting Computer Hackware Hacking Suite Protection Core Shielding Artifact Matter Drive Weapon Enhanced Autogun Energy Gun Sigix Quantum Sheargun Energy Cannon Compact HERF Cannon Ballistic Gun Enhanced Autogun Ballistic Cannon Hardcell Cannon Launcher Precision Rocket Launcher Impact Weapon Core Stripper Slashing Weapon Greatsword Piercing Weapon Plasma Lance Build | -11 -10 -10 -9 -9 -9 -7 -7 -7 -7 -6 -6 -6 -6 -6 -6 -6 -6 -5 -5 -5 -5 -5 -5 -4 -4 -4 -4 -4 -3 -3 -3 -3 -2 -2 -1 -1 -1 ------- Run | Scr Mat Min Mat Sto Rec Fac Low Low Zio Pro Fac Was Fac Ext Cet Arc Hub Fac Was Fac Upp Upp Zhi Pro Fac Upp Upp War Pro Res Qua Sec Res Tes Acc Com Ac0 Slots Evolved 21 | 3 1 . . 3 . 6 . . . . 3 . . . 2 . . 1 . 1 . . . . . . . . . 1 . . . . . . . Power 2 | . . . . . . . . . . . 1 . . . . . . 1 . . . . . . . . . . . . . . . . . . . Propulsion 3 | 1 . . . . . . . . . . . . . . 2 . . . . . . . . . . . . . . . . . . . . . . Utility 10 | . . . . 2 . 6 . . . . 1 . . . . . . . . . . . . . . . . . . 1 . . . . . . . Weapon 6 | 2 1 . . 1 . . . . . . 1 . . . . . . . . 1 . . . . . . . . . . . . . . . . . Parts Attached 341 | 7 12 1 5 16 . 19 13 4 1 3 13 6 12 3 8 . 9 10 4 1 . . 8 1 7 1 . 6 . 5 39 29 7 8 5 62 16 Power 24 | 1 . . 1 1 . . . . . . 2 . . . 2 . . 1 . . . . 2 . . . . 1 . . 1 2 . . . 5 5 Engine 7 | 1 . . 1 1 . . . . . . 2 . . . . . . 1 . . . . 1 . . . . . . . . . . . . . . Core . | . . . . . . . . . . . . . . . . . . . . . . . . . . . . . . . . . . . . . . Reactor 17 | . . . . . . . . . . . . . . . 2 . . . . . . . 1 . . . . 1 . . 1 2 . . . 5 5 Propulsion 32 | 2 . . . 2 . . 1 . . . 3 1 . 1 3 . . . . . . . . . . . . . . . 2 3 . . . 14 . Treads 26 | 2 . . . 2 . . 1 . . . 3 1 . 1 3 . . . . . . . . . . . . . . . 2 3 . . . 8 . Leg . | . . . . . . . . . . . . . . . . . . . . . . . . . . . . . . . . . . . . . . Wheel 1 | . . . . . . . . . . . . . . . . . . . . . . . . . . . . . . . . . . . . 1 . Hover . | . . . . . . . . . . . . . . . . . . . . . . . . . . . . . . . . . . . . . . Flight 5 | . . . . . . . . . . . . . . . . . . . . . . . . . . . . . . . . . . . . 5 . Utility 148 | 1 2 1 3 3 . 10 6 4 1 . 2 2 10 1 . . 9 6 4 . . . 6 1 2 1 . 3 . 4 25 14 5 5 . 10 7 Device 101 | 1 2 . 2 . . 4 5 3 1 . 1 . 5 1 . . 7 5 3 . . . 4 . 1 1 . 1 . . 22 11 5 5 . 4 7 Storage 7 | . . . . . . . . . . . . . . . . . . . . . . . 1 . . . . . . . . . . . . 6 . Processor 26 | . . 1 . 2 . 4 1 . . . 1 . 4 . . . 1 1 . . . . . . 1 . . 1 . 4 3 2 . . . . . Hackware 1 | . . . . . . 1 . . . . . . . . . . . . . . . . . . . . . . . . . . . . . . . Protection 12 | . . . 1 1 . 1 . 1 . . . 2 1 . . . 1 . 1 . . . 1 1 . . . 1 . . . . . . . . . Artifact 1 | . . . . . . . . . . . . . . . . . . . . . . . . . . . . . . . . 1 . . . . . Weapon 137 | 3 10 . 1 10 . 9 6 . . 3 6 3 2 1 3 . . 3 . 1 . . . . 5 . . 2 . 1 11 10 2 3 5 33 4 Energy Gun 13 | . . . . . . 3 . . . . . . . . . . . . . . . . . . . . . . . . . 1 . . . 8 1 Energy Cannon 3 | . . . . . . . . . . . . . . . . . . . . . . . . . . . . . . . 2 1 . . . . . Ballistic Gun 107 | 3 10 . 1 7 . 6 5 . . 3 6 3 2 1 3 . . 3 . 1 . . . . 5 . . 1 . 1 6 7 1 2 3 24 3 Ballistic Cannon 2 | . . . . . . . . . . . . . . . . . . . . . . . . . . . . . . . 2 . . . . . . Launcher 2 | . . . . 1 . . . . . . . . . . . . . . . . . . . . . . . . . . . 1 . . . . . Special Weapon . | . . . . . . . . . . . . . . . . . . . . . . . . . . . . . . . . . . . . . . Impact Weapon 3 | . . . . 2 . . . . . . . . . . . . . . . . . . . . . . . . . . 1 . . . . . . Slashing Weapon 1 | . . . . . . . 1 . . . . . . . . . . . . . . . . . . . . . . . . . . . . . . Piercing Weapon 6 | . . . . . . . . . . . . . . . . . . . . . . . . . . . . 1 . . . . 1 1 2 1 . Special Melee Weapon . | . . . . . . . . . . . . . . . . . . . . . . . . . . . . . . . . . . . . . . Unidentified Prototypes 48 | . . . . 2 . 2 2 1 . . . . . . 2 . 4 2 . . . . 5 . . . . 4 . . 14 4 1 . . 3 2 Parts Lost . | . . . . . . . . . . . . . . . . . . . . . . . . . . . . . . . . . . . . . . Power . | . . . . . . . . . . . . . . . . . . . . . . . . . . . . . . . . . . . . . . Propulsion . | . . . . . . . . . . . . . . . . . . . . . . . . . . . . . . . . . . . . . . Utility . | . . . . . . . . . . . . . . . . . . . . . . . . . . . . . . . . . . . . . . Weapon . | . . . . . . . . . . . . . . . . . . . . . . . . . . . . . . . . . . . . . . Highest Loss Streak . | . . . . . . . . . . . . . . . . . . . . . . . . . . . . . . . . . . . . . . Average Slot Usage (%) 92 | . 99 99 99 99 100 99 99 99 99 100 98 87 91 94 91 90 81 90 89 91 91 91 90 91 90 90 91 90 87 86 87 89 91 89 92 90 91 Engine 3 | . 12 12 12 9 9 7 5 5 5 5 7 10 10 10 5 . . 2 4 4 4 4 4 4 4 4 4 3 . . . . . . . . . Reactor 6 | . . . . . . . . . . . . . . . 4 9 9 8 8 8 8 8 8 8 8 8 8 8 8 8 8 9 11 11 11 10 10 Treads 10 | . 26 25 25 19 18 14 11 11 11 11 10 6 5 5 5 9 9 8 8 8 8 8 8 8 8 8 8 8 8 8 8 8 11 11 11 9 11 Device 21 | . 12 . 10 9 9 12 22 22 25 29 26 21 27 30 28 27 19 30 28 29 29 29 28 29 25 24 25 25 25 21 21 20 19 20 23 22 18 Processor 16 | . . 11 . 4 9 18 23 23 20 17 16 16 18 20 19 18 13 13 13 12 12 12 12 12 12 16 16 15 12 14 21 22 21 19 19 19 19 Protection 1 | . . . . 6 9 7 5 4 5 5 5 3 . . . . 3 . . . . . . . 4 . . . 4 4 . . . . . . . Ballistic Gun 29 | . 45 50 50 47 45 37 27 29 29 29 30 29 30 29 28 27 27 26 26 26 29 29 29 29 28 29 29 28 29 28 27 26 25 24 24 24 22 Naked Turns . | . . . . . . . . . . . . . . . . . . . . . . . . . . . . . . . . . . . . . . Heaviest Build 127 | 11 19 12 15 27 21 29 41 33 38 39 54 90 49 48 78 78 119 91 127 94 94 94 99 100 100 89 89 108 108 108 113 113 110 110 111 115 115 Greatest Support 198 | 40 40 40 40 40 40 40 43 43 43 43 60 70 70 70 160 160 160 160 160 160 160 160 160 160 160 160 160 160 160 160 180 198 198 198 198 198 198 Greatest Overweight (x) 1 | 1 . . . . . . 1 . . . 1 1 . . . . . . . . . . . . . . . . . . . 1 . . . 1 . Average Overweight (x) . | . . . . . . . . . . . . . . . . . . . . . . . . . . . . . . . . . . . . . . Largest Inventory Capacity 5 | . . . . 1 1 3 3 4 4 4 4 4 4 4 4 4 4 4 4 4 4 4 4 4 4 4 4 4 4 4 5 5 5 5 5 5 5 Average Capacity 3 | . . . . . 1 1 3 3 4 4 4 4 4 4 4 4 4 4 4 4 4 4 4 4 4 4 4 4 4 4 4 5 5 5 5 5 5 Most Carried 5 | . . . . 1 1 3 3 4 4 4 4 4 4 4 4 4 4 4 4 4 3 3 4 4 4 4 4 4 4 4 5 5 5 5 5 5 5 Average Carried 3 | . . . . . 1 1 2 3 2 2 2 2 3 3 3 4 2 3 3 3 3 3 3 4 3 4 4 3 3 4 3 4 4 4 4 4 4 Final Capacity 5 | . . . . 1 1 3 3 4 4 4 4 4 4 4 4 4 4 4 4 4 4 4 4 4 4 4 4 4 4 4 5 5 5 5 5 5 5 Final Carried 5 | . . . . 1 1 3 3 4 2 1 4 4 4 3 4 4 3 4 4 3 3 3 4 4 4 4 4 3 4 4 5 4 5 4 5 4 4 Class Distribution -------------------- 58% | Scavenger-Executioner 18% | Gunner 12% | Generator-Executioner 4% | Derelict-Gunner Dominant Class ---------------- Gunner | -10/Materials Gunner | -10/Mines Gunner | -9/Materials Commander-Gunner | -9/Storage Gunner | -9/Recycling Gunner | -7/Factory Gunner | -7/Lower Caves Gunner | -7/Lower Caves Gunner | -7/Zion Derelict-Gunner | -6/Proximity Caves Scavenger-Executioner | -6/Factory Scavenger-Executioner | -6/Waste Scavenger-Executioner | -6/Factory Scavenger-Executioner | -6/Extension Scavenger-Executioner | -6/Cetus Scavenger-Executioner | -6/Archives Scavenger-Executioner | -6/Hub_04(d) Scavenger-Executioner | -5/Factory Scavenger-Executioner | -5/Waste Scavenger-Executioner | -5/Factory Scavenger-Executioner | -5/Upper Caves Scavenger-Executioner | -5/Upper Caves Scavenger-Executioner | -5/Zhirov Scavenger-Executioner | -4/Proximity Caves Scavenger-Executioner | -4/Factory Scavenger-Executioner | -4/Upper Caves Scavenger-Executioner | -4/Upper Caves Scavenger-Executioner | -4/Warlord Generator-Executioner | -3/Proximity Caves Generator-Executioner | -3/Research Generator-Executioner | -3/Quarantine Generator-Executioner | -3/Section 7 Scavenger-Executioner | -2/Research Scavenger-Executioner | -2/Testing Scavenger-Executioner | -1/Access Scavenger-Executioner | -1/Command Scavenger-Executioner | -1/Access_0 Resources | -11 -10 -10 -9 -9 -9 -7 -7 -7 -7 -6 -6 -6 -6 -6 -6 -6 -6 -5 -5 -5 -5 -5 -5 -4 -4 -4 -4 -4 -3 -3 -3 -3 -2 -2 -1 -1 -1 ----------- Run | Scr Mat Min Mat Sto Rec Fac Low Low Zio Pro Fac Was Fac Ext Cet Arc Hub Fac Was Fac Upp Upp Zhi Pro Fac Upp Upp War Pro Res Qua Sec Res Tes Acc Com Ac0 Matter Collected 33101 | 326 555 197 140 568 . 549 424 392 30 372 1690 342 1364 404 658 . 1767 896 448 541 189 27 103 496 922 60 500 310 1172 577 1427 3676 3677 827 392 6312 771 Remotely 30562 | . . . 140 543 . 549 419 392 30 119 1690 342 1362 396 658 . 1751 896 448 541 189 27 103 496 922 60 500 310 1172 577 337 3646 3677 827 392 6292 759 Salvage Created 77428 | 200 840 332 414 1216 . 1036 443 369 . 638 2247 1034 1691 1180 665 . 2917 1306 1105 1585 361 . . 809 1327 198 405 594 1540 881 2815 12686 7595 3111 819 21607 3462 Parts 3473 | 17 70 15 23 69 . 57 14 23 . 35 130 21 83 47 55 . 141 60 22 69 11 3 . 38 63 10 18 29 78 40 196 507 553 131 51 529 265 Haulers Intercepted 21 | . 1 . 1 1 . 4 1 . . . . . 1 4 . . 1 2 . 2 . . . . 1 . . . . 1 . . 1 . . . . Recyclers Shooed 12 | . . . 1 . . 1 . . . . 3 . 4 2 . . . . . . . . . . . . . . . . . 1 . . . . . Parts Field Recycled . | . . . . . . . . . . . . . . . . . . . . . . . . . . . . . . . . . . . . . . Retrieved Matter . | . . . . . . . . . . . . . . . . . . . . . . . . . . . . . . . . . . . . . . Parts Self-Destructed 325 | . . . . . . . 11 21 . 31 . . . . . . . . . . 19 3 . 41 . 4 18 99 78 . . . . . . . . Prevented 15 | . . . . . . . 2 . . . . . . . . . . . . . 1 . . . . 2 . 10 . . . . . . . . . Kills | -11 -10 -10 -9 -9 -9 -7 -7 -7 -7 -6 -6 -6 -6 -6 -6 -6 -6 -5 -5 -5 -5 -5 -5 -4 -4 -4 -4 -4 -3 -3 -3 -3 -2 -2 -1 -1 -1 ------- Run | Scr Mat Min Mat Sto Rec Fac Low Low Zio Pro Fac Was Fac Ext Cet Arc Hub Fac Was Fac Upp Upp Zhi Pro Fac Upp Upp War Pro Res Qua Sec Res Tes Acc Com Ac0 Combat Hostiles Destroyed 1036 | . 26 8 6 20 . 14 9 8 . 14 38 5 18 8 14 . 33 14 3 10 8 1 . 15 19 1 7 7 32 11 29 160 107 46 8 294 43 Melee 3 | . . . . . . . . . . . . . . . . . . . . . . . . . . . . . . . . . . . . 3 . Guns 1026 | . 26 8 6 20 . 14 9 8 . 14 38 5 18 8 14 . 30 13 3 10 8 1 . 15 19 1 7 7 32 11 28 158 107 46 8 291 43 AOE 5 | . . . . . . . . . . . . . . . . . 2 1 . . . . . . . . . . . . . 2 . . . . . Classes Destroyed 34 | 3 4 2 2 1 . 2 2 3 . 1 1 1 1 . . . . . . . . . . . . 1 . 1 . . 3 4 2 . . . . Worker 70 | 2 2 . 1 1 . 3 . . . . 5 . . 2 . . 14 3 . 3 . . . . 3 . . . . 1 . . 5 . . 25 . Builder 25 | . 2 . . 1 . 1 . . . . 1 . 1 1 . . 4 3 . 5 . . . . 1 . . . . . . . 5 . . . . Tunneler 9 | 4 1 1 . . . . . . . . . . . 2 . . . . . . . . . . 1 . . . . . . . . . . . . Hauler 21 | . 1 . 1 1 . 4 1 . . . . . 1 4 . . 1 2 . 2 . . . . 1 . . . . 1 . . 1 . . . . Recycler 35 | 1 1 1 . 2 . 2 . . . . 2 . 6 1 . . 4 3 . 3 . . . . 2 . . . . . . 1 . . 1 5 . Carrier 11 | . . . . . . . . . . . . . . . . . . . . . . . . . . . . . . . . 2 2 1 . 6 . Minesweeper 1 | . . . . . . . . 1 . . . . . . . . . . . . . . . . . . . . . . . . . . . . . Mechanic 26 | . . . . 1 . . . . . . . . . . . . . . . . . . . . . . . . . . . 9 3 1 . 12 . Operator 7 | . . . . . . 1 . . . . . . . . . . 2 . . 1 . . . . . . . . . . . 1 . . 1 1 . Drone 1 | . . . . . . . . . . . . . . . . . . . . . . . . . . . . . . . . . 1 . . . . Watcher 22 | . . . . . . . . . . . . . 2 . 1 . 3 2 . 1 . . . . . . . . . 1 1 1 3 . . 7 . Swarmer 140 | . 9 . . 3 . 4 . . . 5 4 . 6 3 . . 6 4 . . 4 . . 5 . . 1 . 20 5 . 6 4 2 . 49 . Saboteur 26 | . . . . . . . . . . . . . . . . . . . . . . . . . . . . . . . . 11 3 . . 12 . Grunt 324 | . 17 3 2 10 . 5 8 6 . 8 18 . 1 2 5 . 9 6 . 1 . . . 9 4 . 1 3 6 . 9 46 21 22 . 102 . Brawler 46 | . . . 1 . . 1 . 1 . . 1 . . . 1 . . . . . 2 . . 1 1 . . 1 . . . 15 5 4 . 12 . Duelist 31 | . . . . . . . 1 . . . 2 . . . . . . . . 2 . . . . 2 . . . . . . 9 2 6 . 7 . Protector 31 | . . . . . . . . . . . 1 . . . . . 1 . . 1 . . . . . . . . . . . 9 7 3 . 9 . Researcher 3 | . . . . . . . . . . . . . . . . . . . . . . . . . . . . . . . 1 1 . 1 . . . Sentry 71 | . . . 3 7 . 1 . . . . 2 . 2 . . . 4 1 . 4 1 1 . 1 5 . 1 . 3 4 . 5 11 8 1 6 . Demolisher 2 | . . 1 . . . . . . . . . . . . . . . . . . . . . . . . . . . . . . . . . 1 . Specialist 1 | . . . . . . . . . . . . . . . . . . . . . . . . . . . . 1 . . . . . . . . . Hunter 100 | . . . . . . . . . . 1 6 . 5 1 2 . 4 . . . 1 . . . 7 . 4 . . . . 17 16 . 2 34 . Programmer 112 | . . . . . . 3 . . . . 3 . 4 1 . . 3 3 . 2 . . . . . . . 4 2 2 4 27 25 . 3 26 . Behemoth 13 | . . . . . . . . 1 . . 1 . . 1 . . . . . . . . . . . 1 . . 1 . . 1 2 . 2 3 . Compactor 8 | . . . . . . . . . . . . 5 . . . . . . 3 . . . . . . . . . . . . . . . . . . Cetus Guard 6 | . . . . . . . . . . . . . . . 6 . . . . . . . . . . . . . . . . . . . . . . Quarantine Guard 12 | . . . . . . . . . . . . . . . . . . . . . . . . . . . . . . . 12 . . . . . . S7 Guard 2 | . . . . . . . . . . . . . . . . . . . . . . . . . . . . . . . . 2 . . . . . M Guard 2 | . . . . . . . . . . . . . . . . . . . . . . . . . . . . . . . . . . . . 2 . Enhanced Grunt 26 | . . . . . . . . . . . . . . . . . . . . . . . . . . . . . . . . . . . . . 26 Enhanced Sentry 2 | . . . . . . . . . . . . . . . . . . . . . . . . . . . . . . . . . . . . . 2 Enhanced Hunter 8 | . . . . . . . . . . . . . . . . . . . . . . . . . . . . . . . . . . . . . 8 Lightning 9 | . . . . . . . . . . . . . . . . . 6 . . . . . . . . . . . . . 3 . . . . . . Combat Programmer 2 | . . . . . . . . . . . . . . . . . . . . . . . . . . . . . . . . . . . . 2 . Investigator 6 | . . . . . . . . . . . . . . . . . . . . . . . . . . . . . . . . 1 1 1 . 3 . Striker 23 | . . . . . . . . . . . . . . . . . . . . . . . . . . . . . . . . 1 5 1 . 16 . Executioner 24 | . . . . . . . . . . . . . . . . . . . . . . . . . . . . . . . . 10 4 . . 10 . Alpha 7 3 | . . . . . . . . . . . . . . . . . . . . . . . . . . . . . . . 1 1 . . . 1 . Fortress 1 | . . . . . . . . . . . . . . . . . . . . . . . . . . . . . . . 1 . . . . . . Samaritan 1 | . . . . . . . . . . . . . . . . . . . . . . . . . . 1 . . . . . . . . . . . Tinkerer 1 | . . . . . . . . 1 . . . . . . . . . . . . . . . . . . . . . . . . . . . . . Assembled 4 | . . 4 . . . . . . . . . . . . . . . . . . . . . . . . . . . . . . . . . . . Surgeon 1 | . . . . . . . . . . . . . . . . . . . . . . . . . . . . 1 . . . . . . . . . Wasp 2 | . . . . . . . . . . . . . . . . . . . . 2 . . . . . . . . . . . . . . . . . Thug 3 | . . . . . . . . . . 1 . . . . . . . . . 2 . . . . . . . . . . . . . . . . . Martyr 2 | . . . . . . . . . . . . . . . . . . . 2 . . . . . . . . . . . . . . . . . . Mutant 1 | . . . . . . . 1 . . . . . . . . . . . . . . . . . . . . . . . . . . . . . . Troll 1 | . . . . . . . . . . . . . . . . . . . . . . . . . . . . . . . . . 1 . . . . Best Kill Streak 46 | 5 10 3 4 14 . 6 5 6 . 4 9 3 9 4 4 . 13 6 2 6 5 1 . 4 14 1 3 4 14 3 13 41 24 23 4 46 7 Combat Bots Only 46 | . 5 3 4 8 . 4 5 6 . 4 8 3 4 4 3 . 9 5 2 5 5 1 . 4 11 1 3 4 14 3 13 39 20 22 3 46 7 Max Kills in Single Turn 10 | 1 2 1 1 2 . 3 1 2 . 2 3 1 2 2 3 . 10 3 1 5 2 1 . 3 2 2 2 2 2 3 3 4 4 3 2 5 2 Gunslinging 3 | . 1 . . 1 . 2 . . . 1 2 . 1 1 1 . 1 2 . . 1 . . 2 . . 1 1 1 2 1 2 2 1 1 3 1 Exploded 2 | . . . . . . . . . . . . . . . . . 2 1 . . . . . . . . . . . . . 2 . . . . . Melee 1 | . . . . . . . . . . . . . . . . . . . . . . . . . . . . . . . . . . . . 1 . Uniques/NPCs Destroyed 10 | . . . . . . . . . . . . . . . 2 . . . . . . . . . . . . . . . . . . . . 1 7 A7 (-6/Cetus) Revision 17 (-6/Cetus) MAIN.C Shell (-1/Command) MAIN.C (-1/Command) A8 (-1/Access_0) A6 (-1/Access_0) A5 (-1/Access_0) A2 (-1/Access_0) A4 (-1/Access_0) Architect (-1/Access_0) A3 (-1/Access_0) Combat | -11 -10 -10 -9 -9 -9 -7 -7 -7 -7 -6 -6 -6 -6 -6 -6 -6 -6 -5 -5 -5 -5 -5 -5 -4 -4 -4 -4 -4 -3 -3 -3 -3 -2 -2 -1 -1 -1 -------- Run | Scr Mat Min Mat Sto Rec Fac Low Low Zio Pro Fac Was Fac Ext Cet Arc Hub Fac Was Fac Upp Upp Zhi Pro Fac Upp Upp War Pro Res Qua Sec Res Tes Acc Com Ac0 Damage Taken 17793 | . 548 738 125 502 . 468 251 240 . 358 1788 . 753 265 323 . 984 74 . 129 131 . . 208 198 . 87 142 830 178 273 1266 716 474 196 2414 3134 Core 13800 | . 436 590 102 390 . 365 196 187 . 279 1394 . 609 205 259 . 748 55 . 99 105 . . 160 127 . 67 113 557 117 223 963 556 369 145 1871 2513 Absorbed by Shields 11495 | . . . . . . . 53 85 . 135 541 . 279 97 118 . 374 29 . 49 50 . . 77 72 . 32 111 578 166 272 1325 740 495 208 2372 3237 Reduced by Siege Mode 82 | . . . . . . . . . . . . . . . . . . . . . . . . . . . . . . . . 28 1 12 . 29 12 Redirected to Core 12228 | . 360 510 77 371 . 313 176 187 . 249 1212 . 489 200 226 . 717 55 . 99 86 . . 160 95 . 67 100 492 91 140 889 540 316 137 1727 2147 Core Remaining (%) 84 | 100 . 7 . . 65 . . . . 100 . . . . . . 95 . . . . . . 100 . . . . 100 . . 83 . 100 . . 90 Volleys Fired 1832 | 10 64 32 15 51 1 31 17 18 . 19 70 23 51 30 42 1 73 29 19 19 7 1 1 18 32 2 20 10 47 23 63 160 128 51 27 403 224 Largest 7 | 3 4 4 4 5 5 5 5 5 . 5 6 6 6 6 6 6 6 6 6 7 7 7 7 7 7 7 7 7 7 7 7 7 7 7 7 7 7 Hottest 330 | 60 92 80 83 109 109 117 152 125 . 130 168 163 143 143 174 174 174 195 195 220 220 220 220 220 220 200 200 200 200 195 205 303 248 248 248 330 310 Shots Fired 10801 | 30 215 128 60 234 5 155 82 89 . 95 392 137 285 179 249 6 404 174 114 123 49 7 7 126 224 14 140 70 328 160 392 921 824 288 171 2676 1248 Gun 10788 | 30 215 128 60 231 5 155 82 89 . 95 392 137 285 179 249 6 404 174 114 123 49 7 7 126 224 14 140 70 328 160 385 918 824 288 171 2676 1248 Cannon 7 | . . . . . . . . . . . . . . . . . . . . . . . . . . . . . . . 7 . . . . . . Launcher 6 | . . . . 3 . . . . . . . . . . . . . . . . . . . . . . . . . . . 3 . . . . . Special . | . . . . . . . . . . . . . . . . . . . . . . . . . . . . . . . . . . . . . . Kinetic 10489 | 30 215 128 60 231 5 155 78 89 . 95 392 137 285 179 249 6 404 174 114 123 49 7 7 126 224 14 140 70 328 160 388 902 824 288 171 2613 1029 Thermal . | . . . . . . . . . . . . . . . . . . . . . . . . . . . . . . . . . . . . . . Explosive 6 | . . . . 3 . . . . . . . . . . . . . . . . . . . . . . . . . . . 3 . . . . . Electromagnetic 9 | . . . . . . . 4 . . . . . . . . . . . . . . . . . . . . . . . 4 . . . . 1 . Slashing 297 | . . . . . . . . . . . . . . . . . . . . . . . . . . . . . . . . 16 . . . 62 219 Robot Hit Streak 127 | 12 19 11 19 16 . 21 22 35 . 29 24 36 21 21 27 . 21 13 77 29 17 4 . 24 25 11 14 15 22 62 49 90 72 96 127 97 73 Robot Miss Streak 5 | 2 3 2 2 2 5 4 1 1 . 2 5 1 3 2 3 . 4 2 1 2 5 . . 2 4 1 3 1 5 1 1 3 2 2 1 3 2 Penetration Max 2 | . . . . . . 1 . 1 . 1 1 . 1 1 1 . 1 1 1 1 1 . . 1 1 1 . 1 1 1 2 2 2 2 1 2 1 Secondary Targets 369 | . 2 1 . 4 . 7 4 2 . 4 16 . 4 3 8 . 12 6 . 1 5 . . 7 7 . 2 6 15 3 3 80 34 18 2 98 15 Max Gunslinging Chain 3 | . 1 1 . 2 . 2 1 1 . 2 2 . 1 1 1 . 2 2 . 1 2 . . 2 1 . 1 2 2 2 1 3 2 2 1 3 2 Shots Hit Robots 7584 | 20 116 86 43 139 . 84 72 67 . 68 302 116 190 136 203 . 242 95 102 63 29 2 . 72 148 12 42 37 210 85 232 749 576 234 136 1790 1086 Core Hits 5065 | 10 58 27 18 49 2 48 31 32 . 34 131 24 68 42 58 . 114 44 12 44 10 1 . 31 66 3 18 17 58 32 111 669 469 240 59 1575 860 Critical Hits 1401 | . . . . 1 . 2 3 1 . 1 5 5 11 4 17 . 36 21 23 15 5 1 . 13 30 1 4 7 9 7 51 211 153 53 16 467 228 Critical Kills 400 | . . . . 1 . 1 1 1 . 1 1 . 4 1 4 . 17 5 2 8 1 1 . 3 10 . 2 3 5 2 20 71 50 16 4 144 21 Critical Parts Destroyed 702 | . . . . . . 1 2 . . . 3 1 7 3 10 . 19 16 5 7 3 . . 7 17 1 2 4 4 5 28 102 81 32 9 219 114 Melee Attacks 61 | . . . . 3 . . 10 . . . . . . . . . . . . . . . . . . . . 1 . . 2 . 2 1 21 21 . Kinetic 2 | . . . . . . . . . . . . . . . . . . . . . . . . . . . . . . . 2 . . . . . . Impact 3 | . . . . 3 . . . . . . . . . . . . . . . . . . . . . . . . . . . . . . . . . Slashing 10 | . . . . . . . 10 . . . . . . . . . . . . . . . . . . . . . . . . . . . . . . Piercing 45 | . . . . . . . . . . . . . . . . . . . . . . . . . . . . . . . . . 2 1 21 21 . Entropic 1 | . . . . . . . . . . . . . . . . . . . . . . . . . . . . 1 . . . . . . . . . Sneak Attacks . | . . . . . . . . . . . . . . . . . . . . . . . . . . . . . . . . . . . . . . Combat Hostiles . | . . . . . . . . . . . . . . . . . . . . . . . . . . . . . . . . . . . . . . Follow-up Attacks . | . . . . . . . . . . . . . . . . . . . . . . . . . . . . . . . . . . . . . . Damage Inflicted 205249 | 209 1270 688 415 1237 36 1289 1233 1250 . 1090 7416 2536 3288 2633 3766 . 7009 3383 3264 4145 749 71 . 2692 4332 367 812 1313 4517 2490 5642 26091 17857 8081 3127 53328 27623 Guns 198558 | 209 1209 670 413 1231 14 1270 1233 1250 . 1090 6623 2536 3220 2633 3766 . 5182 2668 3264 2474 749 71 . 2692 3959 367 812 1313 4197 2460 5588 25504 17752 8081 3127 53308 27623 Cannons . | . . . . . . . . . . . . . . . . . . . . . . . . . . . . . . . . . . . . . . Explosions 6029 | . 26 . . . . . . . . . 736 . . . . . 1715 702 . 1655 . . . . 369 . . . 320 . . 506 . . . . . Melee 54 | . . . . . . . . . . . . . . . . . . . . . . . . . . . . . . . 54 . . . . . . Ramming 608 | . 35 18 2 6 22 19 . . . . 57 . 68 . . . 112 13 . 16 . . . . 4 . . . . 30 . 81 105 . . 20 . Kinetic 191581 | 209 1209 670 413 1231 14 1270 1177 1250 . 1090 6623 2536 3220 2633 3766 . 5182 2668 3264 2474 749 71 . 2692 3959 367 812 1313 4197 2460 5642 24886 17752 8081 3127 51371 23203 Thermal 2333 | . . . . . . . . . . . 736 . . . . . . . . 1277 . . . . . . . . 320 . . . . . . . . Explosive 1716 | . . . . . . . . . . . . . . . . . . 580 . 261 . . . . 369 . . . . . . 506 . . . . . Electromagnetic 2036 | . 26 . . . . . 56 . . . . . . . . . 1715 122 . 117 . . . . . . . . . . . . . . . . . Impact . | . . . . . . . . . . . . . . . . . . . . . . . . . . . . . . . . . . . . . . Slashing 6975 | . . . . . . . . . . . . . . . . . . . . . . . . . . . . . . . . 618 . . . 1937 4420 Piercing . | . . . . . . . . . . . . . . . . . . . . . . . . . . . . . . . . . . . . . . Highest Corruption 10 | . . . . . . 4 4 4 4 . 1 7 9 9 9 9 10 . . . . . . . . . . 1 1 1 1 . . . . . . Average Corruption 5 | . . . . . . 2 4 4 4 . 1 6 8 9 9 9 9 . . . . . . . . . . 1 1 1 1 . . . . . . Corruption Purged 2 | . . . . . . . . . . . . . . . . . . . . . . . . . . . . . . . 2 . . . . . . Effects 323 | . . . . . . 9 20 19 5 . 1 18 73 48 43 2 74 . . . . . . . . . . 1 3 5 2 . . . . . . Message Errors 51 | . . . . . . 3 3 5 1 . . 2 13 9 5 . 8 . . . . . . . . . . . 1 . 1 . . . . . . Matter Fused 38 | . . . . . . . 3 4 2 . . 4 12 3 2 1 7 . . . . . . . . . . . . . . . . . . . . Heat Flow Errors 22 | . . . . . . 2 1 2 1 . . 1 7 3 4 . 1 . . . . . . . . . . . . . . . . . . . . Energy Discharges 30 | . . . . . . 3 3 2 . . . 1 4 4 3 1 7 . . . . . . . . . . . . 2 . . . . . . . Parts Rejected 1 | . . . . . . . . . . . . . . 1 . . . . . . . . . . . . . . . . . . . . . . . Data Loss (minor) 25 | . . . . . . 1 1 5 1 . . . 6 3 1 . 5 . . . . . . . . . . 1 . 1 . . . . . . . Data Loss (major) 6 | . . . . . . . . . . . . . 3 . 1 . 2 . . . . . . . . . . . . . . . . . . . . Misfires 6 | . . . . . . . . . . . . . 2 2 2 . . . . . . . . . . . . . . . . . . . . . . Alerts 1 | . . . . . . . . . . . . . . . . . 1 . . . . . . . . . . . . . . . . . . . . Targeting Errors 113 | . . . . . . . 7 . . . 1 9 18 20 20 . 36 . . . . . . . . . . . 1 1 . . . . . . . Weapon Failures 30 | . . . . . . . 2 1 . . . 1 8 3 5 . 7 . . . . . . . . . . . 1 1 1 . . . . . . Overload Shots . | . . . . . . . . . . . . . . . . . . . . . . . . . . . . . . . . . . . . . . Overflow Damage 747 | . . . . . . . . . . . 215 . . . . . 84 146 . 181 . . . . 32 . . . 24 . . 61 4 . . . . Projectiles . | . . . . . . . . . . . . . . . . . . . . . . . . . . . . . . . . . . . . . . Explosions 741 | . . . . . . . . . . . 215 . . . . . 82 146 . 181 . . . . 32 . . . 24 . . 61 . . . . . Melee 6 | . . . . . . . . . . . . . . . . . 2 . . . . . . . . . . . . . . . 4 . . . . Knockbacks 3 | . . . . . . . . . . . . . 1 . . . 1 . . 1 . . . . . . . . . . . . . . . . . Impact 3 | . . . . . . . . . . . . . 1 . . . 1 . . 1 . . . . . . . . . . . . . . . . . Kinetic . | . . . . . . . . . . . . . . . . . . . . . . . . . . . . . . . . . . . . . . Secondary . | . . . . . . . . . . . . . . . . . . . . . . . . . . . . . . . . . . . . . . Self-Inflicted Damage 261 | . . . . 24 . . . . . . 195 . . . . . 30 12 . . . . . . . . . . . . . . . . . . . Shots 7 | . . . . 1 . . . . . . 3 . . . . . 2 1 . . . . . . . . . . . . . . . . . . . Rammed 80 | . 15 3 4 3 4 3 . . . . 7 . 13 . . . 11 3 . 3 . . . . 1 . . . . 1 . 4 4 . . 1 . Targets Rammed 89 | . 15 4 4 3 4 4 . . . . 8 . 13 . . . 13 3 . 3 . . . . 1 . . . . 2 . 4 7 . . 1 . Kicked . | . . . . . . . . . . . . . . . . . . . . . . . . . . . . . . . . . . . . . . Crushed 9 | . . 1 . . . 1 . . . . 1 . . . . . 2 . . . . . . . . . . . . 1 . . 3 . . . . Highest Temperature 490 | . 72 200 60 247 24 205 195 194 151 185 199 201 208 212 199 118 352 104 . 58 116 58 76 151 353 52 173 190 198 243 449 490 . . . 66 254 Average Temperature 91 | . 18 57 23 73 16 41 92 80 83 80 122 120 88 89 113 57 113 49 . 43 50 43 39 65 98 32 68 80 89 103 124 110 . . . 12 116 Received Heat Transfer 1911 | . 237 150 24 189 . 18 90 30 . 76 273 . 34 14 . . 136 . . 12 24 . . 33 30 . . 15 62 24 13 98 45 80 . 136 68 Effects 10 | . . . . . . . . . . . . . . . . . 1 . . . . . . . 2 . . . . . . 2 . . . . 5 Shutdowns 1 | . . . . . . . . . . . . . . . . . . . . . . . . . . . . . . . . 1 . . . . . Energy Bleed 1 | . . . . . . . . . . . . . . . . . . . . . . . . . 1 . . . . . . . . . . . . Interference 7 | . . . . . . . . . . . . . . . . . . . . . . . . . 1 . . . . . . 1 . . . . 5 Matter Decay 1 | . . . . . . . . . . . . . . . . . 1 . . . . . . . . . . . . . . . . . . . . Siege Activations 15 | . . . . . . . . . . . . . . . 1 . . . . . . . . . . . . . . . . 4 2 1 1 4 2 Total Turns 738 | . . . . . . . . . . . . . . . 4 . . . . . . . . . . . . . . . . 82 11 25 7 566 43 Longest Duration 457 | . . . . . . . . . . . . . . . 4 . . . . . . . . . . . . . . . . 36 6 25 7 457 32 Robots Corrupted 2 | . . . . . . . . . . . . . . . . . 2 . . . . . . . . . . . . . . . . . . . . Combat Hostiles 1 | . . . . . . . . . . . . . . . . . 1 . . . . . . . . . . . . . . . . . . . . Parts Fried 7 | . . . . . . . . . . . . . . . . . 4 1 . 1 . . . . . . . . . . . . 1 . . . . Impact Corruptions 2 | . . . . . . . . . . . . . . . . . 1 . . . . . . . . . . . . . . . 1 . . . . Robots Melted . | . . . . . . . . . . . . . . . . . . . . . . . . . . . . . . . . . . . . . . Combat Hostiles . | . . . . . . . . . . . . . . . . . . . . . . . . . . . . . . . . . . . . . . Parts Melted 22 | . . . . . . . . . . 1 . . . 1 . . . . . 1 . . . . . . . . . . 14 4 . . . 1 . Heat Transferred 1950 | . . . . . . . . . . . 500 . . . . . . . . 1050 . . . . . . . . 400 . . . . . . . . Parts Sabotaged 12 | . . . . . . . . . . . 4 . . . . . . . . . . . . . . . . . . . . . . 1 . 7 . Parts Stolen . | . . . . . . . . . . . . . . . . . . . . . . . . . . . . . . . . . . . . . . Parts Stripped . | . . . . . . . . . . . . . . . . . . . . . . . . . . . . . . . . . . . . . . Power Chain Reactions . | . . . . . . . . . . . . . . . . . . . . . . . . . . . . . . . . . . . . . . Missiles Intercepted . | . . . . . . . . . . . . . . . . . . . . . . . . . . . . . . . . . . . . . . Alert | -11 -10 -10 -9 -9 -9 -7 -7 -7 -7 -6 -6 -6 -6 -6 -6 -6 -6 -5 -5 -5 -5 -5 -5 -4 -4 -4 -4 -4 -3 -3 -3 -3 -2 -2 -1 -1 -1 ------- Run | Scr Mat Min Mat Sto Rec Fac Low Low Zio Pro Fac Was Fac Ext Cet Arc Hub Fac Was Fac Upp Upp Zhi Pro Fac Upp Upp War Pro Res Qua Sec Res Tes Acc Com Ac0 Peak Influence 9244 | 35 573 214 373 589 468 1203 . . . . 1232 431 655 513 1025 514 1282 1572 546 1949 . . . . 985 . . . . 358 381 6748 6770 5254 3496 9244 . Average Influence 2005 | 16 263 139 69 376 353 1089 . . . . 563 431 443 213 667 439 410 1236 510 1202 . . . . 529 . . . . 169 123 1983 5363 4357 3357 6773 . Maximum Alert Level 5 | . 2 1 1 2 2 4 . . . . 4 2 2 2 3 2 4 4 2 5 . . . . 3 . . . . 1 1 5 5 5 5 5 . Low Security (%) 22 | 100 41 61 87 4 . . . . . . 33 . . 66 . . 23 . . . . . . . 10 . . . . 62 72 6 . . . . . Level 1 16 | . 34 38 12 56 64 . . . . . 15 . 20 18 38 . 22 . 14 19 . . . . 31 . . . . 37 27 28 . . . . . Level 2 13 | . 23 . . 39 35 . . . . . 4 100 79 15 8 100 54 9 85 5 . . . . 21 . . . . . . 6 . . . . . Level 3 7 | . . . . . . 58 . . . . 35 . . . 53 . . 25 . 14 . . . . 36 . . . . . . 14 . . . . . Level 4 4 | . . . . . . 41 . . . . 11 . . . . . . 65 . 29 . . . . . . . . . . . . . . . . . Level 5 12 | . . . . . . . . . . . . . . . . . . . . 31 . . . . . . . . . . . . 11 26 100 38 . High Security 20 | . . . . . . . . . . . . . . . . . . . . . . . . . . . . . . . . . 88 73 . 61 . Max Security 2 | . . . . . . . . . . . . . . . . . . . . . . . . . . . . . . . . 44 . . . . . Squads Dispatched 164 | . 7 1 4 7 . 5 . . . . 10 . 6 3 2 . 5 4 . 2 . . . . 4 . . . . 4 1 50 1 11 1 36 . Investigation 24 | . 4 1 2 3 . 1 . . . . . . 1 2 2 . 2 . . . . . . . 1 . . . . 2 . 3 . . . . . Extermination 12 | . . . . . . 3 . . . . 2 . 3 . . . 1 . . . . . . . . . . . . 1 . 2 . . . . . Reinforcement 26 | . 3 . 2 2 . 1 . . . . 5 . 2 1 . . 2 1 . 1 . . . . 2 . . . . 1 1 . 1 1 . . . Assault 96 | . . . . . . . . . . . 3 . . . . . . 3 . 1 . . . . 1 . . . . . . 42 . 9 1 36 . Garrison 6 | . . . . 2 . . . . . . . . . . . . . . . . . . . . . . . . . . . 3 . 1 . . . Intercept . | . . . . . . . . . . . . . . . . . . . . . . . . . . . . . . . . . . . . . . Construction Impeded 9 | . . . . . . . . . . . 2 . 2 1 . . 1 . . 1 . . . . 1 . . . . . . . 1 . . . . Haulers Reinforced 1 | . . . . . . . . . . . . . . . . . 1 . . . . . . . . . . . . . . . . . . . . Stealth | -11 -10 -10 -9 -9 -9 -7 -7 -7 -7 -6 -6 -6 -6 -6 -6 -6 -6 -5 -5 -5 -5 -5 -5 -4 -4 -4 -4 -4 -3 -3 -3 -3 -2 -2 -1 -1 -1 --------- Run | Scr Mat Min Mat Sto Rec Fac Low Low Zio Pro Fac Was Fac Ext Cet Arc Hub Fac Was Fac Upp Upp Zhi Pro Fac Upp Upp War Pro Res Qua Sec Res Tes Acc Com Ac0 Distress Signals 41 | . 2 . 2 4 . . . . . . 2 . 1 2 2 . . . . 1 . . . . . . . . . 3 . 3 5 . 1 13 . Communications Jammed . | . . . . . . . . . . . . . . . . . . . . . . . . . . . . . . . . . . . . . . Distress Signals . | . . . . . . . . . . . . . . . . . . . . . . . . . . . . . . . . . . . . . . Times Spotted 1455 | . 41 13 18 23 10 17 9 7 . 16 51 6 24 21 29 . 48 16 6 13 9 1 . 16 21 1 7 6 26 16 29 279 143 61 11 369 92 Peak Tracking Total 51 | . 4 5 5 3 5 3 5 3 . 4 9 3 4 4 5 . 13 5 2 6 4 1 . 5 6 . 3 3 9 4 11 42 20 19 5 51 5 Tactical Retreats 46 | . 1 1 . . . . . . . 1 2 1 . . 1 . 1 . 2 . . . . . 1 . . . 1 . 2 6 12 1 . 13 . Traps | -11 -10 -10 -9 -9 -9 -7 -7 -7 -7 -6 -6 -6 -6 -6 -6 -6 -6 -5 -5 -5 -5 -5 -5 -4 -4 -4 -4 -4 -3 -3 -3 -3 -2 -2 -1 -1 -1 ------- Run | Scr Mat Min Mat Sto Rec Fac Low Low Zio Pro Fac Was Fac Ext Cet Arc Hub Fac Was Fac Upp Upp Zhi Pro Fac Upp Upp War Pro Res Qua Sec Res Tes Acc Com Ac0 Traps Triggered 24 | . 3 . 1 2 . 1 . . . . 1 . 5 . . . 1 1 . 1 . . . . . . . . . . . . . . . 8 . Indirectly 1 | . . . . . . . . . . . . . . . . . 1 . . . . . . . . . . . . . . . . . . . . Trap Hack Attempts . | . . . . . . . . . . . . . . . . . . . . . . . . . . . . . . . . . . . . . . Triggered . | . . . . . . . . . . . . . . . . . . . . . . . . . . . . . . . . . . . . . . Disarmed . | . . . . . . . . . . . . . . . . . . . . . . . . . . . . . . . . . . . . . . Reprogrammed . | . . . . . . . . . . . . . . . . . . . . . . . . . . . . . . . . . . . . . . Reused . | . . . . . . . . . . . . . . . . . . . . . . . . . . . . . . . . . . . . . . Traps Extracted . | . . . . . . . . . . . . . . . . . . . . . . . . . . . . . . . . . . . . . . Installed . | . . . . . . . . . . . . . . . . . . . . . . . . . . . . . . . . . . . . . . Triggered 18 | . . . . . . . . . . . . . . . . . . . . . . . . . . 4 . 14 . . . . . . . . . Machines | -11 -10 -10 -9 -9 -9 -7 -7 -7 -7 -6 -6 -6 -6 -6 -6 -6 -6 -5 -5 -5 -5 -5 -5 -4 -4 -4 -4 -4 -3 -3 -3 -3 -2 -2 -1 -1 -1 ---------- Run | Scr Mat Min Mat Sto Rec Fac Low Low Zio Pro Fac Was Fac Ext Cet Arc Hub Fac Was Fac Upp Upp Zhi Pro Fac Upp Upp War Pro Res Qua Sec Res Tes Acc Com Ac0 Machines Disabled 222 | . 2 . . 3 . 1 . 1 . . 21 . 1 4 5 3 29 22 . 36 1 . 1 . 16 . . 1 7 1 16 28 2 5 3 6 7 Max in Single Turn 20 | . 2 . . 1 . 1 . 1 . . 19 . 1 1 1 2 20 4 . 13 1 . 1 . 8 . . . 4 1 2 2 1 1 1 2 1 Garrison Access 3 | . . . . . . . . . . . . . . . . . . . . . . . . . . . . . . . . 1 1 1 . . . Phase Generator 1 | . . . . . . . . . . . . . . . . . . . . . . . . . . . . . . . . . . . . 1 . Network Hub 2 | . . . . . . . . . . . . . . . . . 2 . . . . . . . . . . . . . . . . . . . . Machines Sabotaged . | . . . . . . . . . . . . . . . . . . . . . . . . . . . . . . . . . . . . . . Garrisons Compromised . | . . . . . . . . . . . . . . . . . . . . . . . . . . . . . . . . . . . . . . Overloaded Fab Kills . | . . . . . . . . . . . . . . . . . . . . . . . . . . . . . . . . . . . . . . Fab Network Shutdowns 1 | . . . . . . . . . . . . . . . . . . . . 1 . . . . . . . . . . . . . . . . . Hacking | -11 -10 -10 -9 -9 -9 -7 -7 -7 -7 -6 -6 -6 -6 -6 -6 -6 -6 -5 -5 -5 -5 -5 -5 -4 -4 -4 -4 -4 -3 -3 -3 -3 -2 -2 -1 -1 -1 --------- Run | Scr Mat Min Mat Sto Rec Fac Low Low Zio Pro Fac Was Fac Ext Cet Arc Hub Fac Was Fac Upp Upp Zhi Pro Fac Upp Upp War Pro Res Qua Sec Res Tes Acc Com Ac0 Machines Accessed 94 | . 5 2 1 9 9 4 1 1 . . . . 3 7 4 . 4 . . 4 . . 4 . 1 . . 5 . 5 14 6 . 2 1 2 . Terminals 64 | . 3 1 1 7 3 2 . . . . . . 3 7 4 . 4 . . 3 . . . . . . . . . 4 12 5 . 2 1 2 . Fabricators 3 | . . . . . . . . . . . . . . . . . . . . 1 . . . . 1 . . . . 1 . . . . . . . Repair Stations . | . . . . . . . . . . . . . . . . . . . . . . . . . . . . . . . . . . . . . . Recycling Units 12 | . 2 . . 2 6 2 . . . . . . . . . . . . . . . . . . . . . . . . . . . . . . . Scanalyzers 1 | . . . . . . . . . . . . . . . . . . . . . . . . . . . . . . . 1 . . . . . . Garrison Access 2 | . . . . . . . . . . . . . . . . . . . . . . . . . . . . . . . 1 1 . . . . . Total Hacks 372 | . 14 3 1 21 17 7 1 1 . . . . 15 20 15 . 18 . . 22 . . 17 . 3 . . 10 . 41 70 45 . 12 6 13 . Successful 212 | . 10 2 . 14 12 4 1 1 . . . . 11 13 6 . 7 . . 14 . . 17 . 3 . . 10 . 14 39 19 . 8 2 5 . Failed 157 | . 4 1 1 7 5 3 . . . . . . 4 7 8 . 11 . . 8 . . . . . . . . . 26 31 25 . 4 4 8 . Catastrophic 26 | . . . . 1 1 . . . . . . . 3 . 2 . 2 . . . . . . . . . . . . 8 3 6 . . . . . Database Lockouts 6 | . . . . . . . . . . . . . . . 2 . . . . . . . . . . . . . . 1 . 3 . . . . . Manual 204 | . 6 1 1 16 12 2 . . 1 . . . 10 10 13 . 10 . . 13 . . . . . . . . . 26 29 45 . 7 . 2 . Terminals 302 | . 11 2 1 18 10 4 . . . . . . 15 20 15 . 18 . . 19 . . . . . . . . . 35 60 43 . 12 6 13 . Fabricators 12 | . . . . . . . . . . . . . . . . . . . . 3 . . . . 3 . . . . 6 . . . . . . . Repair Stations . | . . . . . . . . . . . . . . . . . . . . . . . . . . . . . . . . . . . . . . Recycling Units 16 | . 3 . . 3 7 3 . . . . . . . . . . . . . . . . . . . . . . . . . . . . . . . Scanalyzers 7 | . . . . . . . . . . . . . . . . . . . . . . . . . . . . . . . 7 . . . . . . Garrison Access 5 | . . . . . . . . . . . . . . . . . . . . . . . . . . . . . . . 3 2 . . . . . Terminal Hacks 148 | . 6 2 . 6 5 2 1 1 . . . . 10 6 4 . 4 . . 9 . . 17 . . . . 10 . 11 27 16 . 6 2 3 . Record 12 | . . . . . 1 . . . . . . . . . . . . . . . . . 5 . . . . 4 . . 2 . . . . . . Part Schematic 11 | . . . . . . . . . . . . . 1 . 1 . . . . . . . 4 . . . . . . 1 4 . . . . . . Robot Analysis 20 | . 2 . . . 1 1 . . . . . . 2 . . . . . . 3 . . 4 . . . . . . 2 2 3 . . . . . Prototype ID Bank 18 | . 1 . . 1 . . . . . . . . 1 . 1 . . . . 1 . . 4 . . . . 4 . . 3 . . . . 2 . Open Door 19 | . . 1 . 3 . . 1 1 . . . . 1 5 1 . . . . . . . . . . . . 2 . . 2 2 . . . . . Level Access Points 3 | . . . . . . . . . . . . . . . . . . . . . . . . . . . . . . . . 1 . 1 1 . . Branch Access Points 6 | . 1 . . . . 1 . . . . . . 1 . . . . . . 1 . . . . . . . . . 1 . . . . 1 . . Emergency Access Points 2 | . . . . . . . . . . . . . . . . . . . . . . . . . . . . . . . 1 . . . . 1 . Machine Index 1 | . . . . . . . . . . . . . . . . . . . . . . . . . . . . . . . 1 . . . . . . Terminal Index 3 | . . . . . 1 . . . . . . . . 1 . . . . . . . . . . . . . . . . . . . 1 . . . Fabricator Index 1 | . . . . . . . . . . . . . . . . . . . . . . . . . . . . . . . . . . 1 . . . Garrison Index 2 | . . . . . . . . . . . . . . . . . . . . 1 . . . . . . . . . . . . . 1 . . . Alert Level 16 | . . . . 1 1 . . . . . . . 1 . 1 . 1 . . 1 . . . . . . . . . 3 4 2 . 1 . . . Unreport Threat 17 | . . . . . . . . . . . . . 2 . . . 3 . . 1 . . . . . . . . . 3 4 4 . . . . . Locate Traps 4 | . . . . . . . . . . . . . 1 . . . . . . 1 . . . . . . . . . . 2 . . . . . . Dispatch Records 2 | . . 1 . . 1 . . . . . . . . . . . . . . . . . . . . . . . . . . . . . . . . Transport Status 1 | . 1 . . . . . . . . . . . . . . . . . . . . . . . . . . . . . . . . . . . . Recall Investigation 2 | . . . . . . . . . . . . . . . . . . . . . . . . . . . . . . . . 2 . . . . . Recall Extermination 1 | . . . . . . . . . . . . . . . . . . . . . . . . . . . . . . . . 1 . . . . . Recall Reinforcements 1 | . . . . . . . . . . . . . . . . . . . . . . . . . . . . . . 1 . . . . . . . Hauler Manifests 2 | . . . . 1 . . . . . . . . . . . . . . . . . . . . . . . . . . . . . 1 . . . Registered Components 1 | . 1 . . . . . . . . . . . . . . . . . . . . . . . . . . . . . . . . . . . . Zone Layout 2 | . . . . . . . . . . . . . . . . . . . . . . . . . . . . . . . 2 . . . . . . Activate Exoskeleton 1 | . . . . . . . . . . . . . . . . . . . . . . . . . . . . . . . . 1 . . . . . Fabricator Hacks 7 | . . . . . . . . . . . . . . . . . . . . 2 . . . . 3 . . . . 2 . . . . . . . Load Schematic 3 | . . . . . . . . . . . . . . . . . . . . 1 . . . . 1 . . . . 1 . . . . . . . Build 4 | . . . . . . . . . . . . . . . . . . . . 1 . . . . 2 . . . . 1 . . . . . . . Repair Station Hacks . | . . . . . . . . . . . . . . . . . . . . . . . . . . . . . . . . . . . . . . Recycling Unit Hacks 2 | . 1 . . . . 1 . . . . . . . . . . . . . . . . . . . . . . . . . . . . . . . Report Inventory 2 | . 1 . . . . 1 . . . . . . . . . . . . . . . . . . . . . . . . . . . . . . . Scanalyzer 2 | . . . . . . . . . . . . . . . . . . . . . . . . . . . . . . . 2 . . . . . . Insert Component 2 | . . . . . . . . . . . . . . . . . . . . . . . . . . . . . . . 2 . . . . . . Garrison Access Hacks . | . . . . . . . . . . . . . . . . . . . . . . . . . . . . . . . . . . . . . . Unauthorized Hacks 129 | . 6 . . 20 17 3 . . . . . . 2 14 6 . 9 . . 7 . . . . . . . . . 3 24 8 . 6 . 4 . Terminals 38 | . 1 . . 6 1 . . . . . . . 1 7 2 . 3 . . 2 . . . . . . . . . 1 8 2 . 2 . 2 . Track 17 | . . . . 4 . . . . . . . . . 3 1 . 1 . . 1 . . . . . . . . . . 6 . . . . 1 . Botnet 18 | . 1 . . 2 1 . . . . . . . 1 2 1 . 1 . . 1 . . . . . . . . . 1 2 2 . 2 . 1 . Operators 1 | . . . . . . . . . . . . . . 1 . . . . . . . . . . . . . . . . . . . . . . . Sabotage 2 | . . . . . . . . . . . . . . 1 . . 1 . . . . . . . . . . . . . . . . . . . . Fabricators 1 | . . . . . . . . . . . . . . . . . . . . 1 . . . . . . . . . . . . . . . . . Prioritize 1 | . . . . . . . . . . . . . . . . . . . . 1 . . . . . . . . . . . . . . . . . Repair Stations . | . . . . . . . . . . . . . . . . . . . . . . . . . . . . . . . . . . . . . . Recycling Units 11 | . 2 . . 2 6 1 . . . . . . . . . . . . . . . . . . . . . . . . . . . . . . . Tunnel 11 | . 2 . . 2 6 1 . . . . . . . . . . . . . . . . . . . . . . . . . . . . . . . Scanalyzers 1 | . . . . . . . . . . . . . . . . . . . . . . . . . . . . . . . 1 . . . . . . Researchers 1 | . . . . . . . . . . . . . . . . . . . . . . . . . . . . . . . 1 . . . . . . Garrison Access 2 | . . . . . . . . . . . . . . . . . . . . . . . . . . . . . . . 1 1 . . . . . Reprogram 1 | . . . . . . . . . . . . . . . . . . . . . . . . . . . . . . . 1 . . . . . . Jam 1 | . . . . . . . . . . . . . . . . . . . . . . . . . . . . . . . . 1 . . . . . Data Cores Recovered 3 | . . . . . . 1 . . . . . . . . . . 1 . . . . . . . . . . . . . . . . . 1 . . Used 2 | . . . . . . 1 . . . . . . . . . . 1 . . . . . . . . . . . . . . . . . . . . Hacking Detections 55 | . 3 1 1 6 4 3 . . . . . . 3 3 3 . 4 . . 3 . . . . 1 . . . . 5 5 5 . 2 1 2 . Full Trace Events 7 | . . . . . 2 . . . . . . . 1 1 1 . . . . . . . . . . . . . . 1 . 1 . . . . . Feedback Events 1 | . . . . . . . . . . . . . . . . . . . . . . . . . . . . . . 1 . . . . . . . Corruption 1 | . . . . . . . . . . . . . . . . . . . . . . . . . . . . . . 1 . . . . . . . Feedback Blocked . | . . . . . . . . . . . . . . . . . . . . . . . . . . . . . . . . . . . . . . Robot Schematics Acquired . | . . . . . . . . . . . . . . . . . . . . . . . . . . . . . . . . . . . . . . Robots Built . | . . . . . . . . . . . . . . . . . . . . . . . . . . . . . . . . . . . . . . Matter . | . . . . . . . . . . . . . . . . . . . . . . . . . . . . . . . . . . . . . . Time . | . . . . . . . . . . . . . . . . . . . . . . . . . . . . . . . . . . . . . . Total Robot Build Rating . | . . . . . . . . . . . . . . . . . . . . . . . . . . . . . . . . . . . . . . Part Schematics Acquired 11 | . . . . . . . . . . . . . 1 . 1 . . . . . . . 4 . . . . . . 1 4 . . . . . . Parts Built 4 | . . . . . . . . . . . . . . . . . . . . 1 . . . . 2 . . . . 1 . . . . . . . Matter 876 | . . . . . . . . . . . . . . . . . . . . 219 . . . . 438 . . . . 219 . . . . . . . Time 386 | . . . . . . . . . . . . . . . . . . . . 116 . . . . 232 . . . . 38 . . . . . . . Total Part Build Rating 12 | . . . . . . . . . . . . . . . . . . . . 3 . . . . 6 . . . . 3 . . . . . . . Parts Repaired . | . . . . . . . . . . . . . . . . . . . . . . . . . . . . . . . . . . . . . . Time . | . . . . . . . . . . . . . . . . . . . . . . . . . . . . . . . . . . . . . . Parts Recycled . | . . . . . . . . . . . . . . . . . . . . . . . . . . . . . . . . . . . . . . Recycled Matter . | . . . . . . . . . . . . . . . . . . . . . . . . . . . . . . . . . . . . . . Retrieved Matter . | . . . . . . . . . . . . . . . . . . . . . . . . . . . . . . . . . . . . . . Retrieved Components . | . . . . . . . . . . . . . . . . . . . . . . . . . . . . . . . . . . . . . . Parts Scanalyzed . | . . . . . . . . . . . . . . . . . . . . . . . . . . . . . . . . . . . . . . Part Schematics Acquired . | . . . . . . . . . . . . . . . . . . . . . . . . . . . . . . . . . . . . . . Parts Damaged . | . . . . . . . . . . . . . . . . . . . . . . . . . . . . . . . . . . . . . . Bothacking | -11 -10 -10 -9 -9 -9 -7 -7 -7 -7 -6 -6 -6 -6 -6 -6 -6 -6 -5 -5 -5 -5 -5 -5 -4 -4 -4 -4 -4 -3 -3 -3 -3 -2 -2 -1 -1 -1 ------------ Run | Scr Mat Min Mat Sto Rec Fac Low Low Zio Pro Fac Was Fac Ext Cet Arc Hub Fac Was Fac Upp Upp Zhi Pro Fac Upp Upp War Pro Res Qua Sec Res Tes Acc Com Ac0 Used RIF Installer . | . . . . . . . . . . . . . . . . . . . . . . . . . . . . . . . . . . . . . . Robots Hacked . | . . . . . . . . . . . . . . . . . . . . . . . . . . . . . . . . . . . . . . Non-combat . | . . . . . . . . . . . . . . . . . . . . . . . . . . . . . . . . . . . . . . Combat . | . . . . . . . . . . . . . . . . . . . . . . . . . . . . . . . . . . . . . . Robot Hacks Applied . | . . . . . . . . . . . . . . . . . . . . . . . . . . . . . . . . . . . . . . Relay Couplers Released 8 | . . . . . . . . . . . . . . . . . 2 . . . . . . . . . . . . . 5 . 1 . . . . Machine Destruction 1 | . . . . . . . . . . . . . . . . . . . . . . . . . . . . . . . . . 1 . . . . Programmers 7 | . . . . . . . . . . . . . . . . . 2 . . . . . . . . . . . . . 5 . . . . . . Robots Rewired 5 | . . . . . . . . . . . . . . . . . . . . . 2 . . . . . . 3 . . . . . . . . . Allies Hacked 1 | . . . . . . . . . . . . . . . . . . . . . . . . . . . . 1 . . . . . . . . . Hacks Repelled . | . . . . . . . . . . . . . . . . . . . . . . . . . . . . . . . . . . . . . . Allies | -11 -10 -10 -9 -9 -9 -7 -7 -7 -7 -6 -6 -6 -6 -6 -6 -6 -6 -5 -5 -5 -5 -5 -5 -4 -4 -4 -4 -4 -3 -3 -3 -3 -2 -2 -1 -1 -1 -------- Run | Scr Mat Min Mat Sto Rec Fac Low Low Zio Pro Fac Was Fac Ext Cet Arc Hub Fac Was Fac Upp Upp Zhi Pro Fac Upp Upp War Pro Res Qua Sec Res Tes Acc Com Ac0 Total Allies 52 | . . 2 . 10 . . . . 3 . . . . 5 2 3 . . 20 . 2 . . . . . . 3 . . 1 1 . . . . . Largest Group 20 | . . 2 2 10 . . . . 3 3 . . . 5 3 3 . . 20 17 4 4 4 2 . . . 3 . . 1 1 . . . . . Highest-Rated Group 1075 | . . 35 35 88 . . . . 76 76 . . . 280 314 357 . . 727 594 171 171 171 95 . . . 172 . . 90 1075 . . . . . Highest-Rated Ally 1075 | . . 31 31 16 . . . . 31 31 . . . 156 140 122 . . 50 46 49 49 49 49 . . . 60 . . 90 1075 . . . . . Total Orders 14 | . . . . 2 . . . . . . . . . . 1 . . . . . . . . . 5 1 . 4 . 1 . . . . . . . STAY 1 | . . . . . . . . . . . . . . . . . . . . . . . . . 1 . . . . . . . . . . . . GOTO 5 | . . . . . . . . . . . . . . . 1 . . . . . . . . . . . . 4 . . . . . . . . . ROAM 2 | . . . . 1 . . . . . . . . . . . . . . . . . . . . 1 . . . . . . . . . . . . EXPLORE 4 | . . . . 1 . . . . . . . . . . . . . . . . . . . . 1 1 . . . 1 . . . . . . . RETURN 2 | . . . . . . . . . . . . . . . . . . . . . . . . . 2 . . . . . . . . . . . . Ally Attacks 505 | . . . 16 48 . . . . . 6 . . . 92 75 6 . . 54 41 12 . . 10 . . . 18 . . . 127 . . . . . Total Damage 15972 | . . . 269 498 . . . . . 127 . . . 2455 1662 160 . . 1132 937 243 . . 435 . . . 817 . . . 7237 . . . . . Kills 105 | . . . 7 10 . . . . . . . . . 17 16 2 . . 3 4 3 . . 1 . . . 8 . . . 34 . . . . . Allies Corrupted 7 | . . . . . . . . . . . . . . . . . . . . 3 . . . . 3 . . 1 . . . . . . . . . Allies Melted 2 | . . . . . . . . . . 1 . . . . 1 . . . . . . . . . . . . . . . . . . . . . . Intel | -11 -10 -10 -9 -9 -9 -7 -7 -7 -7 -6 -6 -6 -6 -6 -6 -6 -6 -5 -5 -5 -5 -5 -5 -4 -4 -4 -4 -4 -3 -3 -3 -3 -2 -2 -1 -1 -1 ------- Run | Scr Mat Min Mat Sto Rec Fac Low Low Zio Pro Fac Was Fac Ext Cet Arc Hub Fac Was Fac Upp Upp Zhi Pro Fac Upp Upp War Pro Res Qua Sec Res Tes Acc Com Ac0 Robot Analysis Total 20 | . 2 . . . 1 1 . . . . . . 2 . . . . . . 3 . . 4 . . . . . . 2 2 3 . . . . . Derelict Logs Recovered 12 | . . . . . . . 1 1 2 . . . . . . . . . . . . 2 . 2 . 3 1 . . . . . . . . . . Drone Launches 35 | . . . . 16 . . . . . . . . . . . . . . . . . . . . 16 . . . 3 . . . . . . . . Drone Recoveries . | . . . . . . . . . . . . . . . . . . . . . . . . . . . . . . . . . . . . . . Exploration | -11 -10 -10 -9 -9 -9 -7 -7 -7 -7 -6 -6 -6 -6 -6 -6 -6 -6 -5 -5 -5 -5 -5 -5 -4 -4 -4 -4 -4 -3 -3 -3 -3 -2 -2 -1 -1 -1 ------------- Run | Scr Mat Min Mat Sto Rec Fac Low Low Zio Pro Fac Was Fac Ext Cet Arc Hub Fac Was Fac Upp Upp Zhi Pro Fac Upp Upp War Pro Res Qua Sec Res Tes Acc Com Ac0 Turns Passed 41254 | 125 1222 744 1057 1107 285 1531 848 783 1722 686 681 344 1473 718 571 50 963 642 466 533 1027 559 315 523 428 749 704 1233 541 676 4166 1909 1285 446 356 7358 2428 Spaces Moved 20695 | 57 585 392 246 513 173 835 437 440 1048 372 225 137 779 377 218 30 348 302 231 280 621 345 165 285 161 465 405 730 236 380 2330 924 618 199 154 3399 1253 Core 8 | 8 . . . . . . . . . . . . . . . . . . . . . . . . . . . . . . . . . . . . . Treads 20567 | 49 585 392 246 513 173 835 437 440 1048 372 225 137 779 377 218 30 348 302 231 280 621 345 165 285 161 465 405 730 236 380 2330 924 618 199 154 3279 1253 Legs . | . . . . . . . . . . . . . . . . . . . . . . . . . . . . . . . . . . . . . . Wheels . | . . . . . . . . . . . . . . . . . . . . . . . . . . . . . . . . . . . . . . Hover . | . . . . . . . . . . . . . . . . . . . . . . . . . . . . . . . . . . . . . . Flight 120 | . . . . . . . . . . . . . . . . . . . . . . . . . . . . . . . . . . . . 120 . Fastest Speed 28 | 50 160 160 160 160 160 160 160 160 160 160 160 160 160 160 160 160 160 160 160 160 160 160 160 160 160 160 160 160 160 160 160 135 143 143 143 28 143 Average Speed 153 | 145 160 160 160 160 160 160 160 160 160 160 160 164 160 160 160 160 160 160 160 160 160 160 160 160 160 160 160 160 160 160 160 140 143 143 143 137 143 Slowest Speed 180 | 160 160 160 160 160 160 160 180 160 160 160 180 180 160 160 160 160 160 160 160 160 160 160 160 160 160 160 160 160 160 160 160 160 143 143 143 154 143 Overloaded Moves . | . . . . . . . . . . . . . . . . . . . . . . . . . . . . . . . . . . . . . . Propulsion Burnouts . | . . . . . . . . . . . . . . . . . . . . . . . . . . . . . . . . . . . . . . Robots Hopped 2 | . . . . . . . . 2 . . . . . . . . . . . . . . . . . . . . . . . . . . . . . Cave-ins Triggered 2 | . . . . . . . . . . . . . . . . . . . . . . . . . . . . 1 . . . . 1 . . . . Teleports 3 | . . . . . . . . . . . . . . . . . . . . . . . . . . . . . . . 1 . . . . 1 1 Exploration Rate (%) 56 | 4 92 76 33 97 51 22 53 68 86 56 11 79 18 58 84 64 47 10 91 14 86 52 65 54 32 89 73 92 62 29 99 72 27 47 6 84 73 Regions Visited 37 Branch Regions 24 Pre-discovered Areas 18 | . 2 . . 2 6 1 1 . . . . . . . . . . . . . . . 3 1 . 1 1 . . . . . . . . . . Known Exits Taken 13 | . 1 . . . . 1 . . . . . . 1 . . . . . . 1 . . . . 1 1 1 1 1 1 . 1 . 1 1 . . Unknown Exits Taken 20 | 1 . 1 1 1 1 . 1 1 1 1 . . . 1 1 1 1 . . . 1 1 1 1 . . . . . . 1 . 1 . . 1 . Scrap Searched 29 | . . . . . . . 12 2 3 2 . . . . . . . . . . 1 1 . 1 . 3 2 . 2 . . . . . . . . Spaces Dug 131 | . . . . . . . 10 . . . . . . . . . . . . . . . 4 . . . 15 15 . 13 . 24 1 1 . 27 21 Terrain Destroyed 2346 | . . . . 30 . . 10 . . 1 44 . . 1 4 1 451 191 26 218 24 6 4 74 110 3 99 32 122 71 62 158 61 32 8 196 307 Melee 19 | . . . . . . . 10 . . . . . . . . . . . . . . . . . . . . 1 . . . . . . . 8 . Projectile 1407 | . . . . . . . . . . 1 2 . . 1 4 1 114 60 26 50 24 6 4 74 55 3 99 31 109 71 62 76 61 32 8 126 307 AOE 920 | . . . . 30 . . . . . . 42 . . . . . 337 131 . 168 . . . . 55 . . . 13 . . 82 . . . 62 . Actions | -11 -10 -10 -9 -9 -9 -7 -7 -7 -7 -6 -6 -6 -6 -6 -6 -6 -6 -5 -5 -5 -5 -5 -5 -4 -4 -4 -4 -4 -3 -3 -3 -3 -2 -2 -1 -1 -1 --------- Run | Scr Mat Min Mat Sto Rec Fac Low Low Zio Pro Fac Was Fac Ext Cet Arc Hub Fac Was Fac Upp Upp Zhi Pro Fac Upp Upp War Pro Res Qua Sec Res Tes Acc Com Ac0 Total 27477 | 75 732 446 879 689 177 955 531 481 1094 425 405 215 919 445 368 30 611 399 288 325 641 350 216 318 273 468 436 784 342 425 2705 1374 862 293 223 5569 1709 Wait 3143 | 2 23 12 592 64 . 28 9 4 43 7 16 13 37 10 47 . 114 35 25 15 4 4 29 5 51 . 5 7 12 6 192 134 35 4 3 1490 66 Move 20656 | 56 584 391 245 512 172 834 436 435 1047 371 225 136 778 376 217 29 348 302 230 279 620 344 164 284 160 464 404 728 235 379 2329 924 617 198 153 3398 1252 Hop 2 | . . . . . . . . 2 . . . . . . . . . . . . . . . . . . . . . . . . . . . . . Pick Up 64 | . . . . 1 . 3 . 2 . 3 6 2 3 . 1 . 2 1 2 1 . . 4 . 1 . . 3 2 . 6 8 1 . 2 8 2 Fast Attach 222 | 7 12 1 4 14 . 16 12 4 1 . 9 . 6 2 8 . 5 8 1 . . . 6 . 1 1 . 3 . 4 25 24 4 3 . 31 10 Attach 54 | . . . . . . 1 1 . . 2 2 6 2 . . . 3 1 3 1 . . 3 . 1 . . 2 . . 4 8 1 2 . 9 2 Detach 57 | . . . 1 1 . 1 3 . 1 . 1 3 1 . . . 4 2 3 . . . 2 . 1 . . 3 . 1 7 10 2 1 . 8 1 Swap 80 | . . . 1 2 . 2 . . . 1 2 . 4 1 . . 1 1 . . . . . 1 5 . . 1 . 1 14 5 2 3 5 23 5 Drop 200 | . 10 1 4 6 . 13 9 5 2 3 5 7 4 3 7 . 5 7 3 1 . . 7 . 2 1 . 6 1 2 24 20 4 2 1 32 3 Fire 1832 | 10 64 32 15 51 1 31 17 18 . 19 70 23 51 30 42 1 73 29 19 19 7 1 1 18 32 2 20 10 47 23 63 160 128 51 27 403 224 Melee 61 | . . . . 3 . . 10 . . . . . . . . . . . . . . . . . . . . 1 . . 2 . 2 1 21 21 . Ram . | . . . . . . . . . . . . . . . . . . . . . . . . . . . . . . . . . . . . . . Kick . | . . . . . . . . . . . . . . . . . . . . . . . . . . . . . . . . . . . . . . Crush 87 | . 15 4 4 3 4 4 . . . . 8 . 13 . . . 12 3 . 3 . . . . 1 . . . . 2 . 3 7 . . 1 . Escape Stasis 12 | . . . . . . . . . . . . . . . . . . . . . . . . . . . . 1 . . . 3 . 2 . 6 . Rewire 17 | . . . . . . . 1 . . . . . . . . . . . . . 2 . . . . . . 14 . . . . . . . . . Trap . | . . . . . . . . . . . . . . . . . . . . . . . . . . . . . . . . . . . . . . Miscellaneous 990 | . 24 5 13 32 . 22 33 11 . 19 61 25 20 23 46 . 44 10 2 6 8 1 . 10 18 . 7 5 45 7 39 75 59 26 11 139 144 Route ------- -11/Scrapyard -10/Materials (discovered 4 exits: *Mat x3 / *Min) -10/Mines (discovered 2 exits: *Mat x2) -9/Materials -9/Storage (discovered 2 exits: [*Mat] / *Rec) -9/Recycling -7/Factory (discovered 2 exits: *Low x2) -7/Lower Caves -7/Lower Caves -7/Zion -6/Proximity Caves -6/Factory -6/Waste -6/Factory (discovered 5 exits: [*Fac] / Low x2 / *Ext x2) -6/Extension (discovered 2 exits: [*Fac] / *Cet) -6/Cetus (discovered 2 exits: [*Fac] / [*Arc]) -6/Archives -6/Hub_04(d) (discovered 3 exits: [*Fac x3]) -5/Factory -5/Waste -5/Factory (discovered 2 exits: *Upp x2) -5/Upper Caves -5/Upper Caves -5/Zhirov -4/Proximity Caves -4/Factory (discovered 4 exits: *Res x2 / *Upp / [*Arm]) -4/Upper Caves -4/Upper Caves (discovered 2 exits: *Res / *War) -4/Warlord -3/Proximity Caves -3/Research (discovered 2 exits: *Qua x2) -3/Quarantine (discovered 2 exits: *Res / *Sec) -3/Section 7 -2/Research -2/Testing -1/Access (discovered 2 exits: Sur / *Com) -1/Command (discovered 2 exits: *Sur / [*Ac0]) -1/Access_0 To Fleet Rendezvous History --------- Turn | Location | Event 1 | -11/Scrapyard | Upgraded with Weapon slot (x2) 6 | -11/Scrapyard | Discovered new exit (range 16) 79 | -11/Scrapyard | Upgraded with Propulsion slot (x1) 126 | -11/Scrapyard | Entered Materials 304 | -10/Materials | Build established: Gunner 417 | -10/Materials | Discovered new exit (range 9) 696 | -10/Materials | Reached level 2 700 | -10/Materials | Upgraded with Weapon slot (x1) 737 | -10/Materials | Discovered new exit (range 16) 745 | -10/Materials | Discovered new exit (range 10) 994 | -10/Materials | Discovered new exit (range 10) 1005 | -10/Materials | Identified exit to Mines 1082 | -10/Materials | Reached level 3 1348 | -10/Materials | Entered Mines 1367 | -10/Mines | Met a Derelict shopkeep closing up shop 1560 | -10/Mines | Assembled infested the area 1812 | -10/Mines | Reached level 4 1899 | -10/Mines | Discovered new exit (range 3) 1932 | -10/Mines | Core integrity fell below 50% 1939 | -10/Mines | Core integrity fell below 20% 2057 | -10/Mines | Discovered new exit (range 15) 2092 | -10/Mines | Entered Materials 2092 | -9/Materials | Accompanied by 2 allies 2093 | -9/Materials | Core integrity fell below 50% 2093 | -9/Materials | Core integrity fell below 20% 2094 | -9/Materials | Reached level 5 2097 | -9/Materials | Led the pair of lost Derelicts to an unsafe place 3019 | -9/Materials | Discovered new exit (range 15) 3053 | -9/Materials | Reached level 6 3149 | -9/Materials | Entered Storage 3189 | -9/Storage | Reached level 7 3210 | -9/Storage | Upgraded with Weapon slot (x1) 3239 | -9/Storage | Upgraded with Utility slot (x1) 3443 | -9/Storage | Discovered new exit (range 46) 3505 | -9/Storage | Reached level 8 3509 | -9/Storage | Build established: Scavenger-Gunner 3547 | -9/Storage | Destroyed 8 combat bots 3595 | -9/Storage | Assisted by bots powering up and referring to "LRC-V3" 3862 | -9/Storage | Reached level 9 3873 | -9/Storage | Used back door to open Recycling access 3873 | -9/Storage | Discovered new exit (range 5) 3909 | -9/Storage | Build established: Commander-Gunner 3922 | -9/Storage | Upgraded with Utility slot (x1) 4071 | -9/Storage | Garrison activated, responded to threat 4256 | -9/Storage | Entered Recycling 4288 | -9/Recycling | Spotter reported a threat 4288 | -9/Recycling | Spotter reported a threat 4339 | -9/Recycling | Spotter reported a threat 4341 | -9/Recycling | Spotter reported a threat 4365 | -9/Recycling | Spotter reported a threat 4365 | -9/Recycling | Spotter reported a threat 4394 | -9/Recycling | Spotter reported a threat 4455 | -9/Recycling | Spotter reported a threat 4470 | -9/Recycling | Spotter reported a threat 4471 | -9/Recycling | Spotter reported a threat 4474 | -9/Recycling | Spotter reported a threat 4483 | -9/Recycling | Spotter reported a threat 4492 | -9/Recycling | Reached level 10 4503 | -9/Recycling | Discovered new exit (range 19) 4527 | -9/Recycling | Spotter reported a threat 4536 | -9/Recycling | Spotter reported a threat 4541 | -9/Recycling | Entered Factory 4542 | -7/Factory | Build established: Gunner 4543 | -7/Factory | Reached level 11 4745 | -7/Factory | Discovered new exit (range 19) 4970 | -7/Factory | Upgraded with Utility slot (x1) 5079 | -7/Factory | Upgraded with Utility slot (x1) 5274 | -7/Factory | Reached level 12 5328 | -7/Factory | Upgraded with Utility slot (x1) 5575 | -7/Factory | Upgraded with Utility slot (x1) 5912 | -7/Factory | Upgraded with Utility slot (x2) 5957 | -7/Factory | Identified exit to Lower Caves 6072 | -7/Factory | Entered Lower Caves 6085 | -7/Lower Caves | Reached level 13 6553 | -7/Lower Caves | Learned location of Zion (-7) 6746 | -7/Lower Caves | Encountered a Warlord checkpoint 6805 | -7/Lower Caves | Discovered new exit (range 13) 6920 | -7/Lower Caves | Entered another Lower Caves area 7076 | -7/Lower Caves | Learned Factory interactive machine intel 7255 | -7/Lower Caves | Reached level 14 7308 | -7/Lower Caves | Found Prototype Device 7308 | -7/Lower Caves | Identified Heart of Steel 7562 | -7/Lower Caves | Spotted B-75 Beast 7629 | -7/Lower Caves | Destroyed B-75 Beast 7696 | -7/Lower Caves | Discovered new exit (range 4) 7703 | -7/Lower Caves | Entered Zion 7783 | -7/Zion | Discovered new exit (range 18) 7937 | -7/Zion | System corruption cleaned by Quarantine Array 8044 | -7/Zion | Received a visual enhancement algorithm 8160 | -7/Zion | Visited the Megawrench Repair Shop 8389 | -7/Zion | Gained Derelict followers 8473 | -7/Zion | Learned location of 1 exit from Lower Caves 8505 | -7/Zion | Learned Factory emergency access door positions 8688 | -7/Zion | Learned Factory stockpile data 8876 | -7/Zion | Build established: Derelict-Gunner 8931 | -7/Zion | Given A8's code to call for help 9425 | -7/Zion | Entered Proximity Caves 9425 | -6/Proximity Caves | Accompanied by 3 allies 9427 | -6/Proximity Caves | Reached level 15 9707 | -6/Proximity Caves | Reached level 16 10100 | -6/Proximity Caves | Discovered new exit (range 6) 10111 | -6/Proximity Caves | Entered Factory 10113 | -6/Factory | Reached level 17 10114 | -6/Factory | Loaded intel: 46 interactive machine locations 10197 | -6/Factory | Spotted B-75 Beast 10222 | -6/Factory | Destroyed B-75 Beast 10380 | -6/Factory | Upgraded with Weapon slot (x1) 10396 | -6/Factory | Upgraded with Power slot (x1) 10427 | -6/Factory | Reached level 18 10461 | -6/Factory | First assault squad dispatched 10486 | -6/Factory | Destroyed 7 combat bots 10538 | -6/Factory | Core integrity fell below 50% 10553 | -6/Factory | Reached level 19 10577 | -6/Factory | Destroyed 8 combat bots 10642 | -6/Factory | Destroyed 7 combat bots 10642 | -6/Factory | Core integrity fell below 20% 10739 | -6/Factory | Upgraded with Utility slot (x1) 10792 | -6/Factory | Sucked down chute 10792 | -6/Factory | Entered Waste 10807 | -6/Waste | EMP discharged 10813 | -6/Waste | Spotted C-40 Crusher 10838 | -6/Waste | Destroyed C-40 Crusher 10866 | -6/Waste | Destroyed C-40 Crusher 10868 | -6/Waste | Build established: Scavenger-Executioner 10874 | -6/Waste | Destroyed C-40 Crusher 10886 | -6/Waste | Destroyed C-40 Crusher 10896 | -6/Waste | Found Damper Plating 10907 | -6/Waste | EMP discharged 10947 | -6/Waste | Destroyed C-40 Crusher 11007 | -6/Waste | EMP discharged 11040 | -6/Waste | Spotted C-40 Crusher 11107 | -6/Waste | EMP discharged 11122 | -6/Waste | Discovered new exit (range 10) 11136 | -6/Waste | Entered Factory 11742 | -6/Factory | Discovered new exit (range 12) 11918 | -6/Factory | Reached level 20 12384 | -6/Factory | Identified exit to Lower Caves 12384 | -6/Factory | Identified exit to Extension 12609 | -6/Factory | Entered Extension 12682 | -6/Extension | Rescued a captive Derelict 12693 | -6/Extension | Rescued a captive Derelict 12709 | -6/Extension | Rescued A7 12728 | -6/Extension | Rescued a captive Derelict 12752 | -6/Extension | Rescued a captive Derelict 12984 | -6/Extension | Disrupted transfer network 12999 | -6/Extension | Spotted B-75 Beast 13013 | -6/Extension | Destroyed B-75 Beast 13023 | -6/Extension | Spotted B-75 Beast 13037 | -6/Extension | Allies destroyed B-75 Beast 13282 | -6/Extension | Discovered new exit (range 24) 13283 | -6/Extension | Discovered new exit (range 23) 13327 | -6/Extension | Entered Cetus 13327 | -6/Cetus | Accompanied by 1 ally 13332 | -6/Cetus | Acquired a Cetus Manufacturing Module code from A7 13340 | -6/Cetus | Spotted Cetus Guard 13340 | -6/Cetus | Spotted Cetus Guard 13345 | -6/Cetus | Spotted Cetus Guard 13351 | -6/Cetus | Destroyed Cetus Guard 13351 | -6/Cetus | Spotted Cetus Guard 13361 | -6/Cetus | Destroyed Cetus Guard 13364 | -6/Cetus | Destroyed Cetus Guard 13373 | -6/Cetus | Allies destroyed Cetus Guard 13496 | -6/Cetus | Started Cetus Manufacturing Module 13503 | -6/Cetus | Discovered new exit (range 24) 13521 | -6/Cetus | Manufactured an Enhanced Grunt 13546 | -6/Cetus | Manufactured an Enhanced Grunt 13555 | -6/Cetus | Reached level 21 13556 | -6/Cetus | Cetus Manufacturing Module disabled 13613 | -6/Cetus | Upgraded with Propulsion slot (x2) 13635 | -6/Cetus | Central database locked down 13719 | -6/Cetus | Spotted Cetus Guard 13719 | -6/Cetus | Spotted Cetus Guard 13727 | -6/Cetus | Spotted Cetus Guard 13732 | -6/Cetus | Allies destroyed Cetus Guard 13733 | -6/Cetus | Spotted Cetus Guard 13736 | -6/Cetus | Destroyed Cetus Guard 13751 | -6/Cetus | Destroyed Cetus Guard 13751 | -6/Cetus | Destroyed Cetus Guard 13753 | -6/Cetus | Destroyed A7 13760 | -6/Cetus | Extracted ID and sensor layout for unrecognized location from A7's data core 13762 | -6/Cetus | Discovered new exit (range 24) 13783 | -6/Cetus | Met Revision 17 13788 | -6/Cetus | Destroyed Revision 17 13898 | -6/Cetus | Entered Archives 13914 | -6/Archives | Met Zhirov 13920 | -6/Archives | Reinforcements dispatched to Archives 13925 | -6/Archives | Discovered new exit (range 15) 13948 | -6/Archives | Entered Hub_04(d) 14025 | -6/Hub_04(d) | Discovered new exit (range 7) 14097 | -6/Hub_04(d) | Destroyed 9 combat bots 14111 | -6/Hub_04(d) | Discovered new exit (range 5) 14225 | -6/Hub_04(d) | Discovered new exit (range 20) 14322 | -6/Hub_04(d) | Network Hub disabled 14384 | -6/Hub_04(d) | Spotted Lightning 14424 | -6/Hub_04(d) | Spotted Lightning 14452 | -6/Hub_04(d) | Spotted Lightning 14474 | -6/Hub_04(d) | Destroyed Lightning 14476 | -6/Hub_04(d) | Spotted Lightning 14484 | -6/Hub_04(d) | Destroyed Lightning 14484 | -6/Hub_04(d) | Reached level 22 14484 | -6/Hub_04(d) | Destroyed Lightning 14494 | -6/Hub_04(d) | Found Prototype Device 14494 | -6/Hub_04(d) | Identified Exp. Phase Shifter 14567 | -6/Hub_04(d) | Found Prototype Energy Cannon 14722 | -6/Hub_04(d) | Spotted Lightning 14727 | -6/Hub_04(d) | Spotted Lightning 14729 | -6/Hub_04(d) | Spotted Lightning 14733 | -6/Hub_04(d) | Destroyed Lightning 14740 | -6/Hub_04(d) | System corruption reached 10% 14763 | -6/Hub_04(d) | Destroyed Lightning 14781 | -6/Hub_04(d) | Destroyed Lightning 14787 | -6/Hub_04(d) | Found Prototype Processor 14787 | -6/Hub_04(d) | Identified Exp. Targeting Computer 14797 | -6/Hub_04(d) | Found Prototype Device 14797 | -6/Hub_04(d) | Identified EM Dispersion Field 14907 | -6/Hub_04(d) | Network Hub disabled 14911 | -6/Hub_04(d) | Entered Factory 15042 | -5/Factory | Found Prototype Processor 15042 | -5/Factory | Identified Exp. Signal Interpreter 15047 | -5/Factory | Found Exp. Signal Interpreter 15141 | -5/Factory | Reached level 23 15171 | -5/Factory | Upgraded with Power slot (x1) 15511 | -5/Factory | First assault squad dispatched 15553 | -5/Factory | Sucked down chute 15553 | -5/Factory | Entered Waste 15554 | -5/Waste | Met a frightened Derelict 15565 | -5/Waste | Spotted C-40 Crusher 15573 | -5/Waste | Destroyed C-40 Crusher 15590 | -5/Waste | Found Damper Plating 15594 | -5/Waste | Spotted C-40 Crusher 15605 | -5/Waste | Spotted C-40 Crusher 15617 | -5/Waste | Spotted C-40 Crusher 15626 | -5/Waste | Destroyed C-40 Crusher 15636 | -5/Waste | Destroyed C-40 Crusher 15653 | -5/Waste | Spotted C-40 Crusher 15664 | -5/Waste | Allies destroyed C-40 Crusher 15677 | -5/Waste | Warlord forces began an assault 15764 | -5/Waste | Allies destroyed C-40 Crusher 15858 | -5/Waste | Discovered new exit (range 24) 16019 | -5/Waste | Entered Factory 16019 | -5/Factory | Accompanied by 17 allies 16123 | -5/Factory | Local fabrication network quarantined 16127 | -5/Factory | Fabricated Enh. Autogun (x1) 16306 | -5/Factory | Identified exit to Upper Caves 16319 | -5/Factory | First assault squad dispatched 16321 | -5/Factory | Spotted B-75 Beast 16382 | -5/Factory | Reached level 24 16385 | -5/Factory | Upgraded with Weapon slot (x1) 16552 | -5/Factory | Entered Upper Caves 16552 | -5/Upper Caves | Accompanied by 3 allies 17437 | -5/Upper Caves | Discovered new exit (range 5) 17579 | -5/Upper Caves | Entered another Upper Caves area 17579 | -5/Upper Caves | Accompanied by 4 allies 17591 | -5/Upper Caves | Attracted the attention of an 0b10 checkpoint 17750 | -5/Upper Caves | Learned Factory stockpile data 17767 | -5/Upper Caves | Learned location of 2 exits from Factory 17943 | -5/Upper Caves | Discovered new exit (range 19) 18138 | -5/Upper Caves | Entered Zhirov 18138 | -5/Zhirov | Accompanied by 4 allies 18138 | -5/Zhirov | Discovered new exit (range 3) 18196 | -5/Zhirov | Learned location of Quarantine (-3) 18196 | -5/Zhirov | Learned location of Command (-1) 18235 | -5/Zhirov | Found Alien Artifact 18235 | -5/Zhirov | Identified Integrated Dissipator 18235 | -5/Zhirov | Installed Integrated Dissipator, increased core heat dissipation (+2%) 18324 | -5/Zhirov | Found Alien Artifact 18402 | -5/Zhirov | Cloak Generator disabled 18453 | -5/Zhirov | Entered Proximity Caves 18453 | -4/Proximity Caves | Accompanied by 2 allies 18461 | -4/Proximity Caves | Reached level 25 18637 | -4/Proximity Caves | Spotted B-86 Titan 18647 | -4/Proximity Caves | Allies destroyed B-86 Titan 18796 | -4/Proximity Caves | Discovered new exit (range 7) 18798 | -4/Proximity Caves | Learned Research stockpile data 18976 | -4/Proximity Caves | Entered Factory 18977 | -4/Factory | Identified exit to Research 19022 | -4/Factory | Discovered new exit (range 59) 19055 | -4/Factory | Discovered new exit (range 108) 19127 | -4/Factory | Reached level 26 19226 | -4/Factory | First assault squad dispatched 19232 | -4/Factory | Destroyed 11 combat bots 19237 | -4/Factory | Fabricated Enh. Autogun (x1) 19353 | -4/Factory | Fabricated Enh. Autogun? 19402 | -4/Factory | Identified exit to Upper Caves 19404 | -4/Factory | Entered Upper Caves 19404 | -4/Upper Caves | Accompanied by 1 ally 19407 | -4/Upper Caves | Encountered a Warlord checkpoint 19812 | -4/Upper Caves | Spotted B-86 Titan 19816 | -4/Upper Caves | Destroyed B-86 Titan 19846 | -4/Upper Caves | Identified exit to Upper Caves 19879 | -4/Upper Caves | Learned location of Armory (-4) 19989 | -4/Upper Caves | Learned 4 Research zone layouts 20153 | -4/Upper Caves | Entered another Upper Caves area 20230 | -4/Upper Caves | Discovered exit to Research (range 17) 20320 | -4/Upper Caves | Encountered a Warlord checkpoint 20764 | -4/Upper Caves | Attracted the attention of an 0b10 checkpoint 20773 | -4/Upper Caves | Discovered new exit (range 10) 20789 | -4/Upper Caves | Identified exit to Warlord 20857 | -4/Upper Caves | Entered Warlord 21073 | -4/Warlord | Learned Research trap positions 21076 | -4/Warlord | Learned Armory security intel 21076 | -4/Warlord | Learned Research security intel 21076 | -4/Warlord | Learned Armory scanalyzer intel 21287 | -4/Warlord | Visited the Vortex Lab 21294 | -4/Warlord | Warlord's base attacked by MAIN.C 21297 | -4/Warlord | Found Prototype Piercing Weapon 21644 | -4/Warlord | Warlord forces counterattacked 21843 | -4/Warlord | Reached level 27 21890 | -4/Warlord | Met Warlord 21895 | -4/Warlord | Identified Vortex Lance 21912 | -4/Warlord | Found Prototype Reactor 21912 | -4/Warlord | Identified Vortex Chain Reactor 21926 | -4/Warlord | Found Prototype Processor 21926 | -4/Warlord | Identified Spectral Analyzer 21931 | -4/Warlord | Found System Purifier 22044 | -4/Warlord | Opened side exit 22075 | -4/Warlord | Crushed by falling debris 22077 | -4/Warlord | Discovered new exit (range 8) 22087 | -4/Warlord | Identified exit to Proximity Caves 22090 | -4/Warlord | Entered Proximity Caves 22244 | -3/Proximity Caves | Attracted the attention of an 0b10 base 22264 | -3/Proximity Caves | Spotted B-86 Titan 22286 | -3/Proximity Caves | Reached level 28 22316 | -3/Proximity Caves | Destroyed 14 combat bots 22341 | -3/Proximity Caves | Destroyed B-86 Titan 22484 | -3/Proximity Caves | Attracted the attention of an 0b10 checkpoint 22538 | -3/Proximity Caves | Build established: Generator-Executioner 22570 | -3/Proximity Caves | Discovered exit to Research (range 9) 22631 | -3/Proximity Caves | Entered Research 22631 | -3/Research | Accompanied by 3 allies 22633 | -3/Research | Loaded intel: 62 trap records 22709 | -3/Research | Fabricated Enh. Autogun (x1) 22824 | -3/Research | Identified exit to Quarantine 22951 | -3/Research | Reached level 29 23267 | -3/Research | Upgraded with Utility slot (x1) 23298 | -3/Research | Central database locked down 23307 | -3/Research | Entered Quarantine 23312 | -3/Quarantine | Spotted Alpha 7 23319 | -3/Quarantine | Destroyed Alpha 7 23325 | -3/Quarantine | Found Exp. Targeting Computer 23328 | -3/Quarantine | Found Prototype Ballistic Gun 23328 | -3/Quarantine | Identified Multirail 23337 | -3/Quarantine | Found Prototype Processor 23337 | -3/Quarantine | Identified Exp. Target Analyzer 23385 | -3/Quarantine | Identified Transdimensional Reconstructor 23433 | -3/Quarantine | Scanned by Researcher 23450 | -3/Quarantine | Cryocooling Duct disabled 23452 | -3/Quarantine | Cryocooling Duct disabled 23465 | -3/Quarantine | Ambient heat levels rising (+20) 23465 | -3/Quarantine | Non-combat units ordered to evacuate 23467 | -3/Quarantine | Ambient heat levels rising (+20) 23467 | -3/Quarantine | Combat units ordered to evacuate 23567 | -3/Quarantine | Quarantine Guard activated 23613 | -3/Quarantine | Spotted Quarantine Guard 23613 | -3/Quarantine | Spotted Quarantine Guard 23615 | -3/Quarantine | Destroyed Quarantine Guard 23617 | -3/Quarantine | Destroyed Quarantine Guard 23643 | -3/Quarantine | Cryocooling Duct disabled 23658 | -3/Quarantine | Ambient heat levels rising (+20) 23685 | -3/Quarantine | Spotted Quarantine Guard 23685 | -3/Quarantine | Destroyed Quarantine Guard 23755 | -3/Quarantine | Spotted Quarantine Guard 23918 | -3/Quarantine | Spotted Quarantine Guard 23918 | -3/Quarantine | Spotted Quarantine Guard 23934 | -3/Quarantine | Destroyed Quarantine Guard 23938 | -3/Quarantine | Spotted Quarantine Guard 23941 | -3/Quarantine | Destroyed Quarantine Guard 23943 | -3/Quarantine | Destroyed Quarantine Guard 23954 | -3/Quarantine | Discovered new exit (range 18) 23955 | -3/Quarantine | Build established: Scavenger-Executioner 24149 | -3/Quarantine | Spotted Quarantine Guard 24149 | -3/Quarantine | Spotted Quarantine Guard 24325 | -3/Quarantine | Spotted Quarantine Guard 24330 | -3/Quarantine | Destroyed Quarantine Guard 24377 | -3/Quarantine | Spotted Quarantine Guard 24401 | -3/Quarantine | Destroyed Quarantine Guard 24432 | -3/Quarantine | Destroyed Quarantine Guard 24617 | -3/Quarantine | Found Alien Artifact 24617 | -3/Quarantine | Identified Dimensional Node Initializer 24617 | -3/Quarantine | Initialized slip node 24628 | -3/Quarantine | Found Alien Artifact 24628 | -3/Quarantine | Identified Hpw. Transdimensional Reconstructor 24628 | -3/Quarantine | Warped through subspace to slip node 24908 | -3/Quarantine | Build established: Scavenger-Mutant 25143 | -3/Quarantine | Found Alien Artifact 25221 | -3/Quarantine | Build established: Scavenger-Executioner 25251 | -3/Quarantine | Identified Core Reset Matrix 25602 | -3/Quarantine | Found Alien Impact Weapon 25602 | -3/Quarantine | Identified Core Stripper 25761 | -3/Quarantine | Spotted Fortress 25770 | -3/Quarantine | Destroyed Fortress 25787 | -3/Quarantine | Found Prototype Device 25787 | -3/Quarantine | Identified Thermal Barrier 25798 | -3/Quarantine | Found Prototype Device 25798 | -3/Quarantine | Identified Exp. Force Field 26056 | -3/Quarantine | Found Alien Artifact 26056 | -3/Quarantine | Identified Terrabomb 26056 | -3/Quarantine | Used Terrabomb 26273 | -3/Quarantine | Reached level 30 26273 | -3/Quarantine | Destroyed Quarantine Guard 26298 | -3/Quarantine | Destroyed Quarantine Guard 26329 | -3/Quarantine | Destroyed 13 combat bots 26530 | -3/Quarantine | Build established: Generator-Executioner 26637 | -3/Quarantine | Found Alien Artifact 26699 | -3/Quarantine | Met incapacitated Sigix Warrior 26699 | -3/Quarantine | Lockdown squad dispatched 26851 | -3/Quarantine | Spotted Lightning 26851 | -3/Quarantine | Spotted Lightning 26852 | -3/Quarantine | Spotted Lightning 26853 | -3/Quarantine | Destroyed Lightning 26865 | -3/Quarantine | Destroyed Lightning 26898 | -3/Quarantine | Destroyed Lightning 26940 | -3/Quarantine | Acquired the access code to the Sigix quarantine chamber 26943 | -3/Quarantine | Unlocked Sigix quarantine chamber 27074 | -3/Quarantine | Identified Subatomic Replicator 27074 | -3/Quarantine | Used Core Reset Matrix 27078 | -3/Quarantine | Sensed 13 artifacts in vicinity 27231 | -3/Quarantine | Discovered new exit (range 23) 27444 | -3/Quarantine | Discovered new exit (range 6) 27444 | -3/Quarantine | Spotted Quarantine Guard 27450 | -3/Quarantine | Destroyed Quarantine Guard 27473 | -3/Quarantine | Entered Section 7 27474 | -3/Section 7 | Sensed 22 artifacts in vicinity 27560 | -3/Section 7 | Found Unknown Launcher 27594 | -3/Section 7 | Identified Fusion Bomb Launcher 27596 | -3/Section 7 | Spotted S7 Guard 27620 | -3/Section 7 | Garrison activated, responded to threat 27624 | -3/Section 7 | Destroyed S7 Guard 27767 | -3/Section 7 | Found Core Membrane 27767 | -3/Section 7 | Installed Core Membrane, gained immunity to corruption 27843 | -3/Section 7 | Reached level 31 27868 | -3/Section 7 | Spotted S7 Guard 27887 | -3/Section 7 | Destroyed S7 Guard 27906 | -3/Section 7 | Used Subatomic Replicator to replicate Integrated Singularity Reactor 27908 | -3/Section 7 | Found Integrated Singularity Reactor 27908 | -3/Section 7 | Installed Integrated Singularity Reactor, increased core energy generation (+2%) 27911 | -3/Section 7 | Installed Integrated Singularity Reactor, increased core energy generation (+2%) 27972 | -3/Section 7 | Found Integrated Reactor 27972 | -3/Section 7 | Installed Integrated Reactor, increased core energy generation (+2%) 27996 | -3/Section 7 | Spotted Executioner 27996 | -3/Section 7 | Spotted Executioner 28000 | -3/Section 7 | Destroyed Executioner 28004 | -3/Section 7 | Destroyed Executioner 28031 | -3/Section 7 | Found Prototype Processor 28031 | -3/Section 7 | Identified Exp. Core Analyzer 28104 | -3/Section 7 | Found Matter Drive 28196 | -3/Section 7 | Found Sigix Quantum Sheargun 28202 | -3/Section 7 | Found Sigix Quantum Sheargun 28205 | -3/Section 7 | Found Sigix Quantum Sheargun 28245 | -3/Section 7 | Spotted Striker 28277 | -3/Section 7 | Found Matter Drive 28309 | -3/Section 7 | Found Transdimensional Reconstructor 28311 | -3/Section 7 | Found Transdimensional Reconstructor 28321 | -3/Section 7 | Found Hpw. Transdimensional Reconstructor 28523 | -3/Section 7 | Spotted Executioner 28523 | -3/Section 7 | Spotted Executioner 28544 | -3/Section 7 | Activated Sigix Exoskeleton 28544 | -3/Section 7 | Central database locked down 28544 | -3/Section 7 | Identified exit to Research 28544 | -3/Section 7 | Received instructions from Sigix Warrior 28560 | -3/Section 7 | Destroyed Executioner 28562 | -3/Section 7 | Destroyed Executioner 28684 | -3/Section 7 | Destroyed 20 combat bots 28709 | -3/Section 7 | Spotted B-99 Colossus 28719 | -3/Section 7 | Destroyed B-99 Colossus 28734 | -3/Section 7 | Spotted Alpha 7 28735 | -3/Section 7 | Found Multirail 28742 | -3/Section 7 | Spotted Alpha 7 28742 | -3/Section 7 | Spotted Investigator 28781 | -3/Section 7 | Found Multirail 28781 | -3/Section 7 | Allies destroyed Alpha 7 28782 | -3/Section 7 | Destroyed Investigator 28787 | -3/Section 7 | Destroyed 21 combat bots 28838 | -3/Section 7 | Found Core Expander 28838 | -3/Section 7 | Installed Core Expander, added new Propulsion slot 28900 | -3/Section 7 | Destroyed Executioner 28901 | -3/Section 7 | Spotted Executioner 28902 | -3/Section 7 | Destroyed Executioner 28921 | -3/Section 7 | Reached level 32 28925 | -3/Section 7 | Destroyed Executioner 28947 | -3/Section 7 | Destroyed Alpha 7 29003 | -3/Section 7 | Destroyed 27 combat bots 29045 | -3/Section 7 | Spotted Striker 29045 | -3/Section 7 | Spotted Executioner 29049 | -3/Section 7 | Destroyed Executioner 29054 | -3/Section 7 | Destroyed Striker 29148 | -3/Section 7 | Destroyed 33 combat bots 29168 | -3/Section 7 | Build established: Scavenger-Executioner 29192 | -3/Section 7 | Found Integrated Dissipator 29192 | -3/Section 7 | Installed Integrated Dissipator, increased core heat dissipation (+2%) 29284 | -3/Section 7 | Spotted Executioner 29284 | -3/Section 7 | Spotted Executioner 29293 | -3/Section 7 | Destroyed Executioner 29304 | -3/Section 7 | Destroyed Executioner 29332 | -3/Section 7 | Destroyed 39 combat bots 29348 | -3/Section 7 | Found Integrated Dissipator 29348 | -3/Section 7 | Installed Integrated Dissipator, increased core heat dissipation (+2%) 29382 | -3/Section 7 | Entered Research 29382 | -2/Research | Warlord forces began assault on 0b10 29384 | -2/Research | Reached level 33 29492 | -2/Research | Research machine network offline 29520 | -2/Research | Spotted B-90 Cyclops 29523 | -2/Research | Spotted B-90 Cyclops 29527 | -2/Research | Destroyed B-90 Cyclops 29531 | -2/Research | Destroyed B-90 Cyclops 29531 | -2/Research | High security lockdown imminent 29598 | -2/Research | Crushed by falling debris 29611 | -2/Research | High security lockdown engaged 29649 | -2/Research | Destroyed 10 combat bots 29694 | -2/Research | Spotted Striker 29699 | -2/Research | Destroyed Striker 29707 | -2/Research | Spotted Executioner 29711 | -2/Research | Destroyed Executioner 29788 | -2/Research | Borebot progress halted 29800 | -2/Research | Borebot progress halted 29802 | -2/Research | Spotted Striker 29807 | -2/Research | Borebot progress halted 29919 | -2/Research | Spotted Striker 29921 | -2/Research | Reached level 34 29926 | -2/Research | Destroyed Striker 29951 | -2/Research | Destroyed 20 combat bots 29977 | -2/Research | Warlord destroyed during the assault 30081 | -2/Research | Spotted Executioner 30159 | -2/Research | Spotted PT-4P8(L) 30161 | -2/Research | Destroyed PT-4P8(L) 30258 | -2/Research | Discovered new exit (range 14) 30361 | -2/Research | Spotted Striker 30367 | -2/Research | Spotted Executioner 30368 | -2/Research | Destroyed Striker 30371 | -2/Research | Destroyed Executioner 30392 | -2/Research | Destroyed 9 combat bots 30466 | -2/Research | Spotted Striker 30467 | -2/Research | Destroyed Striker 30468 | -2/Research | Spotted Executioner 30469 | -2/Research | Spotted Striker 30469 | -2/Research | Destroyed Striker 30471 | -2/Research | Destroyed Executioner 30488 | -2/Research | Spotted Executioner 30493 | -2/Research | Destroyed Executioner 30500 | -2/Research | Spotted Investigator 30502 | -2/Research | Destroyed Investigator 30550 | -2/Research | Destroyed 20 combat bots 30667 | -2/Research | Entered Testing 30768 | -2/Testing | Identified exit to Access 30783 | -2/Testing | High security lockdown imminent 30863 | -2/Testing | High security lockdown engaged 30896 | -2/Testing | Garrison activated, responded to threat 30956 | -2/Testing | Reached level 35 30957 | -2/Testing | Destroyed 22 combat bots 31005 | -2/Testing | Spotted Executioner 31005 | -2/Testing | Spotted Striker 31009 | -2/Testing | Spotted Investigator 31011 | -2/Testing | Destroyed Striker 31024 | -2/Testing | Destroyed Investigator 31050 | -2/Testing | Destroyed 19 combat bots 31113 | -2/Testing | Entered Access 31129 | -1/Access | Identified exit to Command 31129 | -1/Access | Identified exit to Surface 31307 | -1/Access | Spotted B-99 Colossus 31307 | -1/Access | Spotted B-99 Colossus 31343 | -1/Access | Destroyed B-99 Colossus 31356 | -1/Access | Destroyed B-99 Colossus 31363 | -1/Access | First assault squad dispatched 31381 | -1/Access | Found Multirail 31384 | -1/Access | Found Multirail 31469 | -1/Access | Entered Command 31471 | -1/Command | Reached level 36 31612 | -1/Command | Spotted M Guard 31612 | -1/Command | Spotted Combat Programmer 31616 | -1/Command | Spotted M Guard 31617 | -1/Command | Spotted Combat Programmer 31631 | -1/Command | Destroyed Combat Programmer 31636 | -1/Command | Destroyed Combat Programmer 31645 | -1/Command | High security lockdown imminent 31669 | -1/Command | Destroyed 7 combat bots 31669 | -1/Command | Destroyed M Guard 31671 | -1/Command | Destroyed M Guard 31671 | -1/Command | Destroyed all MAIN.C guards 31725 | -1/Command | High security lockdown engaged 31847 | -1/Command | Destroyed Striker 31847 | -1/Command | Destroyed Striker 31879 | -1/Command | Phase Generator disabled 31887 | -1/Command | Destroyed 9 combat bots 31914 | -1/Command | Spotted Striker 31914 | -1/Command | Destroyed Striker 31921 | -1/Command | Spotted Striker 31922 | -1/Command | Spotted Executioner 31922 | -1/Command | Spotted Executioner 31925 | -1/Command | Destroyed Executioner 31927 | -1/Command | Reached level 37 31927 | -1/Command | Destroyed Executioner 31932 | -1/Command | Destroyed Striker 31959 | -1/Command | Destroyed Investigator 31978 | -1/Command | Destroyed 20 combat bots 32099 | -1/Command | Destroyed Striker 32106 | -1/Command | Spotted Striker 32108 | -1/Command | Destroyed Striker 32136 | -1/Command | Destroyed 25 combat bots 32242 | -1/Command | Spotted Striker 32244 | -1/Command | Spotted Striker 32244 | -1/Command | Destroyed Striker 32245 | -1/Command | Spotted Striker 32246 | -1/Command | Spotted Striker 32246 | -1/Command | Spotted Striker 32255 | -1/Command | Destroyed Striker 32255 | -1/Command | Spotted Executioner 32259 | -1/Command | Destroyed Striker 32261 | -1/Command | Destroyed Striker 32268 | -1/Command | Destroyed Executioner 32268 | -1/Command | Destroyed Striker 32285 | -1/Command | Spotted Striker 32288 | -1/Command | Destroyed Striker 32295 | -1/Command | Destroyed Investigator 32299 | -1/Command | Spotted Executioner 32336 | -1/Command | Destroyed Executioner 32367 | -1/Command | Destroyed 31 combat bots 32513 | -1/Command | Spotted Executioner 32514 | -1/Command | Destroyed Executioner 32524 | -1/Command | Spotted Executioner 32524 | -1/Command | Spotted Executioner 32527 | -1/Command | Destroyed Executioner 32532 | -1/Command | Destroyed Executioner 32559 | -1/Command | Spotted Investigator 32559 | -1/Command | Spotted Striker 32559 | -1/Command | Spotted Executioner 32561 | -1/Command | Destroyed Executioner 32563 | -1/Command | Destroyed Striker 32570 | -1/Command | Destroyed Investigator 32574 | -1/Command | Reached level 38 32598 | -1/Command | Destroyed 37 combat bots 32868 | -1/Command | Spotted Striker 32868 | -1/Command | Destroyed Striker 32869 | -1/Command | Spotted Executioner 32870 | -1/Command | Spotted Executioner 32871 | -1/Command | Destroyed Executioner 32874 | -1/Command | Spotted Striker 32875 | -1/Command | Destroyed Striker 32877 | -1/Command | Spotted Striker 32884 | -1/Command | Destroyed Executioner 32891 | -1/Command | Destroyed Striker 32936 | -1/Command | Destroyed 16 combat bots 33683 | -1/Command | Spotted B-99 Colossus 33700 | -1/Command | Destroyed B-99 Colossus 33704 | -1/Command | Found Multirail 34487 | -1/Command | Spotted B-99 Colossus 34502 | -1/Command | Destroyed B-99 Colossus 34827 | -1/Command | Destroyed 31 combat bots 35012 | -1/Command | Destroyed 46 combat bots 35126 | -1/Command | Destroyed 13 combat bots 36179 | -1/Command | Met MAIN.C 36187 | -1/Command | MAIN.C activated Command garrisons 36190 | -1/Command | Reached level 39 36190 | -1/Command | Destroyed MAIN.C Shell 36190 | -1/Command | 0b10 Conduit disabled 36207 | -1/Command | Destroyed MAIN.C 37185 | -1/Command | Spotted Alpha 7 37193 | -1/Command | Destroyed Alpha 7 37232 | -1/Command | Found Prototype Device 37232 | -1/Command | Identified Exp. ECM Suite 37254 | -1/Command | Spotted B-99 Colossus 37260 | -1/Command | Destroyed B-99 Colossus 37425 | -1/Command | Build established: Generator-Executioner 38535 | -1/Command | Discovered exit to Surface (range 15) 38614 | -1/Command | Build established: Scavenger-Executioner 38819 | -1/Command | Warped through subspace to slip node 38819 | -1/Command | Discovered new exit (range 4) 38827 | -1/Command | Entered Access_0 38828 | -1/Access_0 | Sensed 4 artifacts in vicinity 38830 | -1/Access_0 | Met Architect 38839 | -1/Access_0 | Architect warped through subspace 38842 | -1/Access_0 | Destroyed A8 38876 | -1/Access_0 | Architect warped through subspace 38910 | -1/Access_0 | Architect warped through subspace 38911 | -1/Access_0 | Subspace Access Node disabled 38942 | -1/Access_0 | Architect warped through subspace 38961 | -1/Access_0 | Found Hpw. Transdimensional Reconstructor 38980 | -1/Access_0 | Architect warped through subspace 39017 | -1/Access_0 | Architect warped through subspace 39046 | -1/Access_0 | Architect warped through subspace 39065 | -1/Access_0 | A6 warped into view 39077 | -1/Access_0 | Destroyed A6 39080 | -1/Access_0 | Architect warped through subspace 39105 | -1/Access_0 | Architect warped through subspace 39128 | -1/Access_0 | Architect warped through subspace 39149 | -1/Access_0 | Architect warped through subspace 39157 | -1/Access_0 | Found Prototype Device 39157 | -1/Access_0 | Identified Exp. Weapon Cycler 39162 | -1/Access_0 | Found Prototype Device 39168 | -1/Access_0 | Architect warped through subspace 39171 | -1/Access_0 | Destroyed 7 combat bots 39185 | -1/Access_0 | Architect warped through subspace 39206 | -1/Access_0 | Architect warped through subspace 39220 | -1/Access_0 | Architect warped through subspace 39233 | -1/Access_0 | Architect warped through subspace 39234 | -1/Access_0 | Identified Desublimator 39251 | -1/Access_0 | Architect warped through subspace 39279 | -1/Access_0 | Architect warped through subspace 39303 | -1/Access_0 | Architect warped through subspace 39332 | -1/Access_0 | Architect warped through subspace 39356 | -1/Access_0 | Architect warped through subspace 39382 | -1/Access_0 | Architect warped through subspace 39413 | -1/Access_0 | Architect warped through subspace 39421 | -1/Access_0 | A5 warped into view 39428 | -1/Access_0 | Destroyed A5 39444 | -1/Access_0 | Architect warped through subspace 39472 | -1/Access_0 | Architect warped through subspace 39503 | -1/Access_0 | Architect warped through subspace 39531 | -1/Access_0 | Architect warped through subspace 39563 | -1/Access_0 | Architect warped through subspace 39591 | -1/Access_0 | Architect warped through subspace 39599 | -1/Access_0 | Subspace Access Node disabled 39617 | -1/Access_0 | Architect warped through subspace 39640 | -1/Access_0 | Architect warped through subspace 39661 | -1/Access_0 | Architect warped through subspace 39675 | -1/Access_0 | Architect warped through subspace 39703 | -1/Access_0 | Architect warped through subspace 39717 | -1/Access_0 | Architect warped through subspace 39745 | -1/Access_0 | Architect warped through subspace 39759 | -1/Access_0 | Subspace Access Node disabled 39774 | -1/Access_0 | Architect warped through subspace 39800 | -1/Access_0 | Architect warped through subspace 39824 | -1/Access_0 | Architect warped through subspace 39843 | -1/Access_0 | Architect warped through subspace 39859 | -1/Access_0 | Architect warped through subspace 39873 | -1/Access_0 | Architect warped through subspace 39886 | -1/Access_0 | Architect warped through subspace 39902 | -1/Access_0 | Architect warped through subspace 39912 | -1/Access_0 | Architect warped through subspace 39919 | -1/Access_0 | Architect warped through subspace 39929 | -1/Access_0 | Architect warped through subspace 39938 | -1/Access_0 | Architect warped through subspace 39945 | -1/Access_0 | Architect warped through subspace 39952 | -1/Access_0 | Subspace Access Node disabled 40025 | -1/Access_0 | Found Exp. Phase Shifter 40061 | -1/Access_0 | Destroyed A2 40066 | -1/Access_0 | Extracted Singularity Gate Test 138-C access codes from A2's data core 40120 | -1/Access_0 | A4 warped into view 40128 | -1/Access_0 | Destroyed A4 40209 | -1/Access_0 | Singularity Gate disabled 40244 | -1/Access_0 | Singularity Gate disabled 40621 | -1/Access_0 | Destroyed Architect 40623 | -1/Access_0 | Extracted unknown sensor trigger ID from Architect's data core 41113 | -1/Access_0 | A3 warped into view 41133 | -1/Access_0 | Destroyed A3 41244 | -1/Access_0 | Warped through subspace to slip node 41244 | -1/Access_0 | Discovered exit to Surface (range 8) 41255 | *** | Heading to fleet! Last Messages --------------- 41178_ Slug penetrates Enhanced Grunt. 41178_ Slug penetrates Wall. 41180_ Quantum Shear penetrates Enhanced Grunt. 41180_ Destroyed Unknown Energy Cannon. 41180_ Enhanced Grunt suffers critical hit. 41180_ Destroyed Unknown Device. 41180_ Enhanced Grunt suffers critical hit. 41180_ Enhanced Grunt destroyed. 41180_ Slug penetrates Earth. 41190_ Used Protomatter to restore core integrity (+13) 41204_ Used Protomatter to restore part integrity (+230, depleted) 41234_ Quantum Shear penetrates Enhanced Grunt. 41234_ Slug penetrates Enhanced Grunt. 41234_ Enhanced Grunt destroyed. 41234_ Slug penetrates Wall. 41236_ Acquired 2 matter. 41244_ Warped through subspace, drawn to slip node. 41244_ EXIT=FOUND: SURFACE 41255_ Upgraded: Sensor Range (+2) 41255_ Upgraded: Terrain Scan Density (+100) Map ----- +----------------------------------------------------+ | | | | | | | | | | | | | | | | | | | | | | | | | | | | | | | | | ?????????????????????????????????????????????????? | | ?????????????????????????????????????????????????? | | ?????????????????????????????????????????????????? | | ?????????????????????????????????????????????????? | | ?????????????????????????????????????????????????? | | ?????????????????????????????????????????????????? | | ????????????????????????###??????????????????????? | | ???????????????????????## ##?????????????????????? | | ???????????????????????# #?????????????????????? | | ???????????????????????# @ #?????????????????????? | | ??????????????????????## #?????????????????????? | | ??????????????????????# #?????????????????????? | | ??????????????????????# ##?????????????????????? | | ??????????????????????## #?????????????????????? | | ??????????????????????# #?????????????????????? | | ??????????????????????# ##?????????????????????? | | ??????????????????????# < #?????????????????????? | | ??????????????????????# ##?????????????????????? | | ??????????????????????## #??????????????????????? | | ???????????????????????####??????????????????????? | | ?????????????????????????????????????????????????? | | ?????????????????????????????????????????????????? | | ?????????????????????????????????????????????????? | | ?????????????????????????????????????????????????? | | ?????????????????????????????????????????????????? | | ?????????????????????????????????????????????????? | | ?????????????????????????????????????????????????? | | ?????????????????????????????????????????????????? | | ?????????????????????????????????????????????????? | | ?????????????????????????????????????????????????? | | ?????????????????????????????????????????????????? | | ?????????????????????????????????????????????????? | | ?????????????????????????????????????????????????? | | ?????????????????????????????????????????????????? | +----------------------------------------------------+ Best States ------------- Heat Dissipation 163 Coolant Potential 120 Energy Generation 139 Energy Capacity 1950 Matter Stores 650 Matter Capacity 650 Sight Range 27 Terrain Scan Range 16 Terrain Scan Density 10 Base Temperature (-) 200 Armor Coverage 1200 Resistance: KI 20 Resistance: TH 20 Resistance: EX 10 Resistance: EM 90 Core Shielding 20 Utility Shielding 90 Weapon Cycling 30 Phase Shifting 20 Evasion (%) 64 Targeting Accuracy 24 Target Analysis 12 Core Analysis 15 Armor Integrity Analysis 66 Recoil Reduction 5 Matter Filtering 50 Salvage Targeting 4 Offensive Hacking 20 Defensive Hacking 10 Item Schematics ----------------- None Robot Schematics ------------------ None Fabricated ------------ Enh. Autogun | x1 | -5/Factory Enh. Autogun | x1 | -4/Factory Enh. Autogun | x1 | -4/Factory Enh. Autogun | x1 | -3/Research Alien Tech Used ----------------- Integrated Dissipator Dimensional Node Initializer High-powered Transdimensional Reconstructor Core Stripper Terrabomb Core Reset Matrix Core Membrane Subatomic Replicator Integrated Singularity Reactor Integrated Reactor Sigix Quantum Sheargun Matter Drive Core Expander Transdimensional Reconstructor Achievements -------------- None Challenges ------------ None RPGLIKE | -11 -10 -10 -9 -9 -9 -7 -7 -7 -7 -6 -6 -6 -6 -6 -6 -6 -6 -5 -5 -5 -5 -5 -5 -4 -4 -4 -4 -4 -3 -3 -3 -3 -2 -2 -1 -1 -1 --------- Run | Scr Mat Min Mat Sto Rec Fac Low Low Zio Pro Fac Was Fac Ext Cet Arc Hub Fac Was Fac Upp Upp Zhi Pro Fac Upp Upp War Pro Res Qua Sec Res Tes Acc Com Ac0 Levels Raised 38 | . 2 1 2 3 1 2 1 1 . 2 3 . 1 . 1 . 1 1 . 1 . . . 1 1 . . 1 1 1 1 2 2 1 . 4 . XP Earned 61318 | 3000 3740 1050 3175 4607 977 3867 1527 1200 453 2705 4458 72 804 996 1049 186 992 1521 52 1406 329 105 82 1237 1486 152 301 613 1948 1182 1990 3492 2625 895 866 5299 879 XP Spent 59995 | 1800 1100 . . 3100 . 12575 300 1000 . 775 6350 . 770 . 3200 . 2205 1275 . 2000 405 . . 400 320 . . . 1800 4000 1250 4610 3135 . 1400 4845 1380 Upgrades 106 | 3 1 . . 6 . 10 1 1 . 6 6 . 5 . 9 . 8 3 . 1 3 . . 1 2 . . . 3 2 1 16 6 . 2 5 5 Power Slot 2 | . . . . . . . . . . . 1 . . . . . . 1 . . . . . . . . . . . . . . . . . . . Propulsion Slot 3 | 1 . . . . . . . . . . . . . . 2 . . . . . . . . . . . . . . . . . . . . . . Utility Slot 10 | . . . . 2 . 6 . . . . 1 . . . . . . . . . . . . . . . . . . 1 . . . . . . . Weapon Slot 6 | 2 1 . . 1 . . . . . . 1 . . . . . . . . 1 . . . . . . . . . . . . . . . . . Core Integrity 24 | . . . . . . 1 . . . 5 . . . . 4 . . . . . 3 . . . . . . . . . . 8 1 . . 1 1 Heat Dissipation 13 | . . . . 1 . . . . . . . . 1 . . . 3 . . . . . . . 2 . . . . . . 6 . . . . . Energy Generation 2 | . . . . . . . 1 . . . . . . . . . 1 . . . . . . . . . . . . . . . . . . . . Energy Storage 2 | . . . . . . . . . . . . . . . . . 2 . . . . . . . . . . . . . . . . . . . . Matter Storage 4 | . . . . . . . . . . . . . . . 1 . . 2 . . . . . . . . . . . . . . . . . . 1 Inventory Capacity 5 | . . . . 1 . 2 . 1 . . . . . . . . . . . . . . . . . . . . . . 1 . . . . . . Sight Range 3 | . . . . 1 . . . . . . 1 . . . . . . . . . . . . . . . . . . . . . 1 . . . . Sensor Range 1 | . . . . . . . . . . . . . . . . . . . . . . . . . . . . . . . . . . . . . 1 Terrain Scan Density 1 | . . . . . . . . . . . . . . . . . . . . . . . . . . . . . . . . . . . . . 1 Ranged Accuracy 10 | . . . . . . . . . . . . . . . . . . . . . . . . 1 . . . . 3 1 . . 1 . . 4 . Hack Attack % 4 | . . . . . . . . . . . . . 1 . . . 1 . . . . . . . . . . . . . . . . . 2 . . Hack Defense % 2 | . . . . . . . . . . . . . 1 . . . 1 . . . . . . . . . . . . . . . . . . . . KI Resistance % 4 | . . . . . . . . . . . . . 1 . 1 . . . . . . . . . . . . . . . . 1 1 . . . . TH Resistance % 4 | . . . . . . . . . . . 1 . . . 1 . . . . . . . . . . . . . . . . . 1 . . . 1 EX Resistance % 2 | . . . . . . . . . . . . . 1 . . . . . . . . . . . . . . . . . . . 1 . . . . KI Damage % 4 | . . . . . . 1 . . . 1 1 . . . . . . . . . . . . . . . . . . . . 1 . . . . . Protomatter Created 23919 | . 418 28 56 179 . 187 261 254 . 304 745 198 250 . 507 . 520 282 135 240 168 83 . 378 768 . 167 206 490 158 789 3226 3524 1621 261 5806 1710 Integrity Restored 20108 | . 462 84 303 537 . 480 701 254 . 390 1333 557 424 510 939 . 936 170 30 87 169 4 . 192 180 . 120 60 931 102 805 1618 1086 532 196 2663 3253 Core 13994 | . 387 84 303 537 . 456 312 187 . 279 1263 131 424 250 399 . 701 78 24 87 117 . . 160 103 . 91 43 627 58 331 722 827 369 145 1835 2664 Parts 6114 | . 75 . . . . 24 389 67 . 111 70 426 . 260 540 . 235 92 6 . 52 4 . 32 77 . 29 17 304 44 474 896 259 163 51 828 589 Protomatter Decayed 32137 | . 259 32 . 299 . 27 20 174 . 289 238 7 49 146 543 . 202 220 227 264 173 302 . 409 681 . 108 2377 145 120 960 2854 8730 1361 190 10114 617 Game ------ Seed TacticalTargetStorage Manual? 0 Play Time 04:59:34 Cumulative 1404.7 hours Start 2019.12.17 @ 13:55:35 End 2019.12.17 @ 22:48:17 Sessions 5 Manual Loads 0 Difficulty Rogue Special Mode Winter2019/RPGLIKE Game No. 2295 Rogue 2289 Adventurer 0 Explorer 6 Win Type 2 Total 106 Types 37/5/46/3/3/3/9 Lore% 97 Gallery% 98 Achievement% 96 Wizard Run 0 Options --------- ASCII 0 Keyboard 1 Movement Numpad Keybinds 0 Fullscreen 2 Font 18/SmallcapsGlow Map View 76x50 Tactical HUD 1 Map Filters NONE Filters NONE Steam 1 RUN: 2773bae4-0366-47a8-927e-503b17b4a050